Workbook

Sheet Introduction
A1: BiaCalculations | K1: BiaCalculations
A2: Introduction | K2: Content
B4: The abbreviations used in the formulas are: | E4: The units used in the formulas are:
B5: Name | C5: Meaning | E5: Symbol | F5: Name | G5: SI units | L5: Introduction | N5: This page
B6: Da | C6: Dalton | E6: T | F6: Absolute temperature | G6: K (kelvin) | L6: Conversions | N6: Convert ligand immobilization to concentrations and calculate solution concentrations
B7: RU | C7: response units | E7: N | F7: Newton | G7: kg m s-2 | L7: Immobilization | N7: Calculate immobilization parameters
B8: M | C8: Molar | E8: Pa | F8: Pascal | G8: N m-2 | L8: Flow cell | N8: Calculate flow cell parameters
B9: Mr | C9: molecular mass in Da | E9: J | F9: Joule | G9: N m | L9: Diffusion | N9: Calculate diffusion and mass transport parameters
B10: R | C10: response in RU | F10: Liquid viscosity | G10: Poise = Pa s | L10: Dilution | N10: Calculate a dilution scheme - three variants
B11: Req | C11: equilibrium response in RU | L11: Equilibrium | N11: Calculate equilibrium and dissociation based on kinetics and analyte concentration
B12: Rmax | C12: maximal response in RU | L12: Complex calculation | N12: Calculate complex formation
B13: ka | C13: association rate constant in M-1s-1 | E13: The constants used in the formulas are: | L13: Solvent calibration | N13: Calculate solvent calibration dilution and curve
B14: kd | C14: dissociation rate constant in s-1 | E14: Symbol | F14: Name | G14: SI units | L14: Simulation | N14: Simulate association and dissociation curves
B15: KD | C15: equilibrium constant in M | E15: NA | F15: constant of Avogadro | G15: 6.0220 1023 mol-1 | L15: Kinetic plot | N15: Excel format to make kinetic plot
B16: D | C16: diffusion constant in m2s-1 | E16: R | F16: Gas constant | G16: 8.3144 J mol-1 K-1
E17: k | F17: constant of Boltzmann | G17: 1.3807 10-23 J K-1
E18: h | F18: constant of Planck | G18: 6.6262 10-34 J s
B19: Each spreadsheet is divided in two parts: | E19: c | F19: speed of light (vacuum) | G19: 2.9979 108 m s-1
B20: yellow | C20: input of data
B21: orange | C21: output of calculations
B23: Please note that in order to obtain useful results, the input values should be in the correct units (as indicated per input cell). | L23: References
L24: Kortt, A. A., Nice, E. and Gruen, L. C.; Analytical Biochemistry (273) 1: 133-141; 1999.
L25: Walters, R. R., Graham, J. F., Moore, R. M., et al.; Analytical Biochemistry (140) 1: 190-195; 1984.
L26: Ota, A. and Ueda, S.; Hybridoma (17) 5: 471-477; 1998.
L28: Biacore AB; BiaSimulation. 1998.
B29: The sheets are locked to protect the formulas.
B30: Password: | C30: sprpages | L30: Go to www.sprpages.nl and SPRpages book for more information.
B32: Version 4.0 | C32: 2022-05-24

Sheet Conversions
A1: BiaCalculations | N1: BiaCalculations
A2: Conversions | N2: Conversions
B4: Response / binding sites / concentration | H4: Concentration calculation | O4: Concentration calculation
B6: Input
B7: Response | C7: 500 | D7: RU | I7: Stock concentration | O7: Compount | P7: Amount | Q7: Mw | R7: Amount | S7: Volume | T7: Conc.
B8: Molecular mass | C8: 60000 | D8: Da | H8: Protein | I8: (mg mL-1) | J8: (Da) | K8: (M) | L8: (µM) | P8: (gram) | Q8: (Da) | R8: (mol) | S8: (mL) | T8: (mol/L )
H9: A | I9: 2.7 | J9: 150000 | K9: =I9/J9 -> 1.8e-05 | L9: =K9*1000000 -> 18
B10: Calculated | H10: B | I10: 4.66 | J10: 150000 | K10: =I10/J10 -> 3.106666667e-05 | L10: =K10*1000000 -> 31.06666667 | O10: T101 | P10: 0.00896 | Q10: 25600 | R10: =P10/Q10 -> 3.5e-07 | S10: 1 | T10: =R10*1000/S10 -> 0.00035
B11: Binding sites | C11: =C7/C8 -> 0.008333333333 | D11: pmol mm-2
B12: Binding sites | C12: =C15/C8 -> 8.333333333e-09 | D12: mol m-2
I13: Pre dilutions
B14: Surface density | C14: =C7/1000 -> 0.5 | D14: ng mm-2 | I14: Stock | J14: Volume | K14: End vol. | L14: Conc.
B15: Surface density | C15: =C7/1000000 -> 0.0005 | D15: g m-2 | I15: =L8 -> (µM) | J15: (µl) | K15: (µl) | L15: (nM)
H16: =H9 -> A | I16: =L9 -> 18 | J16: 10 | K16: =(I16*J16)*(1000/L16) -> 720 | L16: 250
B17: Concentration | C17: =C7/(100*C8) -> 8.333333333e-05 | D17: mol L-1 | H17: =H10 -> B | I17: =L10 -> 31.06666667 | J17: 10 | K17: =(I17*J17)*(1000/L17) -> 310.6666667 | L17: 1000
B18: Concentration | C18: =C7/100 -> 5 | D18: mg mL-1
B21: Response / binding sites / concentrations | H21: Concentration calculation and pre-dilution | O21: Concentration calculation
B23: 1) Add response and ligand mass | H23: 1) Add concentration and molecular weight. | O23: 1) Add concentration and molecular weight.
B24: 2) Calculated are binding sites / surface density | H24: 2) Add minimal volume from stock: e.g. 10 µL | O24: 2) Add volume of buffer added
B25: and volume concentration | H25: 3) Add end concentration of pre-dilution in nM | O25: 3) See concentration in solution
H26: 4) See end volume of pre-dilution

Sheet Immobilization
A1: BiaCalculations
A2: Immobilization | K2: Help
B5: Calculations before immobilization | G5: Calculations after immobilization
B7: Ligand | G7: Ligand
B8: Molecular mass | C8: 36500 | D8: Da | G8: Molecular mass | H8: 36500 | I8: Da
B9: Valency | C9: 1 | G9: Immobilization | H9: 2000 | I9: RU
B10: Activity | C10: 80 | D10: % | G10: Valency | H10: 1
B12: Analyte | G12: Analyte
B13: Molecular mass | C13: 2500 | D13: Da | G13: Molecular mass | H13: 45000 | I13: Da
B14: Desired Rmax | C14: 100 | D14: RU | G14: Rmax | H14: 80 | I14: RU
B16: Calculations | G16: Calculations
B17: Ligand immobilization | C17: =((C8*C14)/(C13*C9))/(C10/100) -> 1825 | D17: RU | G17: Rmax analyte | H17: =H13/H8*H9*H10 -> 2465.753425 | I17: RU
B18: Ligand sites | C18: =(C17/C8*C9)/(C10/100) -> 0.0625 | D18: pmol mm-2 | G18: Ligand sites | H18: =H9/H8*H10 -> 0.05479452055 | I18: pmol mm-2
G19: Ligand activity | H19: =(H14/H9*(H8/H13)/H10)*100 -> 3.244444444 | I19: %
G20: Ligand concentration | H20: =H9/(100*H8) -> 0.0005479452055 | I20: mol L-1
B25: Calculations before immobilization | G25: Calculations after immobilization
B27: 1) Add ligand molecular mass and valency | G27: 1) Add ligand data
B28: 2) Add activity after immobilization if known | G28: 2) Add analyte molecular mass and observed Rmax
B29: 3) Add analyte molecular mas and desired Rmax | G29: 3) See calculated values
B30: 4) See amount of ligand to be immobilized

Sheet Flowcell
A1: BiaCalculations | Q1: BiaCalculations
A2: Flow and Flow cell | Q2: Flow and Flow cell
B4: Flow rate | J4: Time shift between flow cells | R4: Wall shear
B7: flow rate | C7: f | D7: 1 | E7: µL min-1 | J7: flow | K7: f | L7: 10 | M7: µL min-1 | R7: flowrate | S7: q | T7: 50 | U7: µL min-1
J8: volume | K8: v | L8: 0.3 | M8: µL min-1 | R8: wall shear | S8: jw | T8: =T7/T9 -> 4132.231405 | U8: s-1
D9: =(D$7/60)*0.000001 -> 1.666666667e-08 | E9: L s-1 | R9: factor | S9: f | T9: 0.0121
D10: =(D$7/60)*0.000000001 -> 1.666666667e-11 | E10: m3 s-1 | J10: shift | L10: =(L8/L7)*60 -> 1.8 | M10: s
B14: Flow cell (Biacore 2000/3000) | J14: Thickness of diffusion layer
B17: flow rate | C17: f | D17: 3 | E17: µL min-1 | F17: =((D17/60)*0.000000001) -> 5e-11 | G17: m3 s-1 | J17: Diffusion factor | K17: D | L17: 5e-11 | M17: m2 s-1 | N17: =L17 -> 5e-11 | O17: m2 s-1
B18: height | C18: h | D18: 0.05 | E18: mm | F18: =D18/1000 -> 5e-05 | G18: m | J18: flow rate | K18: f | L18: 3 | M18: µL min-1 | N18: =((L18/60)*0.000000001) -> 5e-11 | O18: m3 s-1
B19: width | C19: w | D19: 0.3 | E19: mm | F19: =D19/1000 -> 0.0003 | G19: m | J19: height | K19: h | L19: 0.05 | M19: mm | N19: =L19/1000 -> 5e-05 | O19: m
B20: length | C20: l | D20: 0.8 | E20: mm | F20: =D20/1000 -> 0.0008 | G20: m | J20: width | K20: w | L20: 0.3 | M20: mm | N20: =L20/1000 -> 0.0003 | O20: m
J21: length | K21: l | L21: 0.8 | M21: mm | N21: =L21/1000 -> 0.0008 | O21: m
B22: volume | C22: v | D22: =D18*D19*D20 -> 0.012 | E22: mm3 | F22: =F18*F19*F20 -> 1.2e-11 | G22: m3
B23: refresh rate | D23: =D17/D22 -> 250 | E23: times min-1 | F23: =F17/F22 -> 4.166666667 | G23: times s-1 | J23: thickness | K23: d | L23: =N23*1000000 -> 8.434326653 | M23: µm | N23: =((N17*N19^2*N20*N21)/(N18))^(1/3) -> 8.434326653e-06 | O23: m
J26: Glaser, R. W.; Antigen-antibody binding and mass transport by convection and diffusion to a surface: a two-dimensional computer model of binding and dissociation kinetics. Analytical Biochemistry (213) 1: 152-161; 1993.

Sheet Diffusion
A1: BiaCalculations | O1: BiaCalculations
A2: Diffusion | O2: Diffusion
B4: Diffusion factor for globular protein | H4: Dynamic viscosity of water | P4: Diffusion coefficients of some proteins
H6: v = A x 10^(B/(T-C)
B7: molecular mass | C7: Mr | D7: 178000 | E7: Da | P7: Protein | Q7: Mw | R7: D20,w
B8: friction factor | C8: f/fo | D8: 1.3 | I8: A | J8: 2.414e-05 | K8: Pa.s | Q8: (Da) | R8: (x 10-11 m2s-1)
B9: solution viscosity | C9: v/vo | D9: 0.89 | I9: B | J9: 247.8 | K9: K | P9: Albumin, bovine serum | Q9: 66500 | R9: 6.29 ± 0.10
B10: factor 1 | D10: 1e-11 | I10: C | J10: 140 | K10: K | P10: Albumin, human serum | Q10: 69000 | R10: 6.43 ± 0.07
B11: factor 2 | D11: 324.3 | H11: Temperature | I11: T | J11: =273+20 -> 293 | K11: K | P11: IgG, human | Q11: 153000 | R11: 4.11 ± 0.05
B13: Diffusion factor | C13: D | D13: =((D10*D11)*(D7^(-(0.333))))/(D8*D9) -> 5.002921966e-11 | E13: m2 s-1 | H13: Dynamic viscosity | I13: v | J13: =J8*10^(J9/(J11-J10)) -> 0.001005414418 | K13: Pa.s | P13: Ref: (211)
B18: Mass transport coefficient (km) | H18: Mass transport coefficient (kt) | P18: Dynamic viscosity of water
S20: The dynamic viscosity of water is 8.90 × 10−4 Pa·s or 8.90 × 10−3 dyn·s/cm2 or 0.890 cP at about 25 °C.
B21: Diffusion factor | C21: D | D21: =D13 -> 5.002921966e-11 | E21: m2 s-1 | H21: km | J21: =D29 -> 8.681759043e-06 | K21: m s-1 | P21: Temperature | Q21: Viscosity | S21: Water has a viscosity of 0.0091 poise at 25 °C, or 1 centipoise at 20 °C.
B22: flow rate | C22: f | D22: =Flowcell!F17 -> 5e-11 | E22: m/s | H22: Molecular weight | I22: Mr | J22: =D7 -> 178000 | K22: Da | P22: [°C] | Q22: [mPa·s] | S22: As a function of temperature T (K): (Pa·s) = A × 10B/(T−C)
B23: flow cell height | C23: h | D23: =Flowcell!F18 -> 5e-05 | E23: m | H23: Factor | J23: 1000000000 | P23: 10 | Q23: 1.308 | S23: where A=2.414 × 10−5 Pa·s ; B = 247.8 K ; and C = 140 K.[citation needed]
B24: flow cell width | C24: w | D24: =Flowcell!F19 -> 0.0003 | E24: m | P24: 20 | Q24: 1.002
B25: flow cell length | C25: l | D25: =Flowcell!F20 -> 0.0008 | E25: m | P25: 30 | Q25: 0.7978
B26: factor 1 | D26: 0.3 | P26: 40 | Q26: 0.6531
B27: factor 2 | D27: 0.98 | P27: 50 | Q27: 0.5471
P28: 60 | Q28: 0.4658
B29: km | D29: =D27*((((D21)^2*D22)/(D26*(D23^2)*D24*D25))^(1/3)) -> 8.681759043e-06 | E29: m s-1 | H29: kt | J29: =J21*J22*J23 -> 1545353110 | K29: RU M-1 s-1 | P29: 70 | Q29: 0.4044
P30: 80 | Q30: 0.355
B31: Values come from flowcell sheet | H31: The kt value is 10 times higher than in publication ref32 | P31: 90 | Q31: 0.315
P32: 100 | Q32: 0.2822

Sheet Dilution
A1: BiaCalculations | S1: BiaCalculations | AK1: BiaCalculations
A2: Dilution wizard | S2: Dilution wizard with duplo sample | AK2: Dilution wizard for competition experiments
C4: Biacore 2000/3000 | D4: T100/200 | U4: Biacore 2000/3000 | V4: T100/200
B5: Inject command | C5: KInject | D5: Inject | F5: Protein | L5: 1) Select Injection type and flow rate 2) Select injection time and replicates 3) Select dilution step and adjust final volume 4) Select highest injection concentration and stock concentration On the row of vial 1 is the first dilution from the stock Next vials are diluted from the previous vial 5) Add kinetic parameters to calculate theorectical Req 6) Select the stock glycerol concentration to calculate the final concentration in the samples | T5: Inject command | U5: KInject | V5: Inject | X5: Protein | AD5: 1) Select Injection type and flow rate 2) Select injection time and replicates 3) Select dilution step and adjust final volume 4) Select highest injection concentration and stock concentration On the row of vial 1 is the first dilution from the stock Next vials are diluted from the previous vial 5) Add kinetic parameters to calculate theorectical Req 6) Select the stock glycerol concentration to calculate the final concentration in the samples | AL5: Constant concentration | AQ5: Competition concentration | AV5: 1) Select number of dilutions, final volume, constant concentration and stock concentration 2) Select dilution step, highest concentration and stock concentration 3) Prepare first constant dilution and add volume in vial 1 4) Dilute const. conc. in vials 0 (no competitor) and vials 2 → n (see table) 5) Dilute comp. concentration (first dilution) and add to first vial 6) Dilute the same volume from vial 1 to vial 2 etc.
B6: Flow rate | C6: 30 | D6: 30 | E6: ul/min | F6: Dilution step | H6: 2 | I6: x | T6: Flow rate | U6: 30 | V6: 30 | W6: ul/min | X6: Dilution step | Z6: 2 | AA6: x
B7: Inject time | C7: 5 | D7: 2 | E7: min | F7: Final volume | H7: 125 | I7: µL | T7: Inject time | U7: 5 | V7: 3 | W7: min | X7: Final volume | Z7: 210 | AA7: µL | AM7: Protein | AQ7: Protein
B8: Replicates | C8: 1 | D8: 2 | E8: x | F8: Highest conc. | H8: 500 | I8: nM | T8: Replicates | U8: 1 | V8: 1 | W8: x | X8: Highest conc. | Z8: 100 | AA8: uM | AL8: no. of dilutions + 1 | AN8: 7 | AQ8: Dilution step | AS8: 2 | AT8: x
B9: Extra volume | C9: =LOOKUP(C5,B12:B14,C12:C14) -> 40 | D9: 40 | E9: ul | F9: Stock concentration | H9: 4333 | I9: =I8 -> nM | T9: Extra volume | U9: =LOOKUP(U5,T12:T14,U12:U14) -> 40 | V9: 58 | W9: ul | X9: Stock concentration | Z9: 4333 | AA9: =AA8 -> uM | AL9: Final volume | AN9: 125 | AO9: µL | AS9: =AN9 -> 125
B10: Total volume | C10: =((C6*C7)+C9)*C8 -> 190 | D10: =((D6*D7)+D9)*D8 -> 200 | E10: ul | T10: Total volume | U10: =((U6*U7)+U9)*U8 -> 190 | V10: =((V6*V7)+V9)*V8 -> 148 | W10: ul | AL10: Constant conc. | AN10: 125 | AO10: nM | AQ10: Highest conc. | AS10: 500 | AT10: uM
G11: ka | H11: 500000 | I11: M-1s-1 | Y11: ka | Z11: 10000 | AA11: M-1s-1 | AL11: Stock concentration | AN11: 61600 | AO11: =AO10 -> nM | AQ11: Stock concentration | AS11: 4333 | AT11: =AT10 -> uM
B12: Inject | C12: 30 | D12: max volume injection | G12: kd | H12: 0.0005 | I12: s-1 | T12: Inject | U12: 30 | V12: max volume injection | Y12: kd | Z12: 0.001 | AA12: s-1 | AP12: extra
B13: KInject | C13: 40 | D13: 250 | E13: µL | G13: Solvent | H13: 0.01 | I13: % | T13: KInject | U13: 40 | V13: 250 | W13: µL | Y13: Solvent | Z13: 600 | AA13: % | AN13: stock | AO13: buffer | AP13: 1.1 | AS13: stock | AT13: buffer
B14: Quickinject | C14: 10 | D14: Check volume | T14: Quickinject | U14: 10 | V14: Check volume | AK14: =CONCATENATE("First dilution (",AM24," nM)") -> First dilution (250 nM) | AN14: =AP13*((AN8-1)*AN9*AN10+(AN9*2*AN10))/AN11 -> 2.232142857 | AO14: =(AN9+((AN8-1)*AN9/2))*AP13 -> 550 | AP14: =CONCATENATE(AN9," in vial 1") -> 125 in vial 1 | AQ14: =CONCATENATE("First dilution (",AP24," ",AT10,")") -> First dilution (1000 uM) | AS14: =AN9*AS10*2*AP13/AS11 -> 31.73321025 | AT14: =AN9*AP13-AS14 -> 105.7667898
G15: KD | H15: =H12/H11 -> 1e-09 | I15: M | T15: Factor | U15: 1 | Y15: KD | Z15: =Z12/Z11 -> 1e-07 | AA15: M | AK15: No competitor | AN15: =AN16 -> 62.5 | AO15: =AO16 -> 62.5 | AP15: vial 0
AK16: Second → n dilution | AN16: =AN9/2 -> 62.5 | AO16: =AN16 -> 62.5 | AP16: vial 2 → n
B17: Dilution scheme | T17: Dilution scheme
AL18: Dilution scheme
B19: Stock | D19: buffer | E19: mix | F19: Final solution | H19: KD | I19: Req | J19: Solvent | T19: Stock | V19: buffer | W19: mix | X19: Final solution | Z19: KD | AA19: Req | AB19: Solvent
A20: Vial | B20: =CONCATENATE("(",I8,")") -> (nM) | C20: (µL) | D20: (µL) | E20: (µL) | F20: =CONCATENATE("(",I8,")") -> (nM) | G20: (µL) | H20: (x) | I20: (%) | J20: =CONCATENATE("(",I13,")") -> (%) | S20: Vial | T20: =CONCATENATE("(",AA8,")") -> (uM) | U20: (µL) | V20: (µL) | W20: (µL) | X20: =CONCATENATE("(",AA8,")") -> (uM) | Y20: (µL) | Z20: (x) | AA20: (%) | AB20: =CONCATENATE("(",AA13,")") -> (%) | AL20: Constant conc. | AO20: Competitor conc. | AQ20: Final volume and concentrations
A21: 1 | B21: =H9 -> 4333 | C21: =(H6/(H6-1)*H7)/B21*H8 -> 28.84837295 | D21: =(H6/(H6-1)*H7)-C21 -> 221.151627 | E21: =SUM(C21:D21) -> 250 | F21: =C21*B21/E21 -> 500 | G21: =E21-C22 -> 125 | H21: =(F21/1000000000)/(H$12/H$11) -> 500 | I21: =(((H$11*(F21/C$39))/(H$11*(F21/C$39)+H$12)))*100 -> 99.8003992 | J21: =C21*H13/E21 -> 0.001153934918 | S21: 1 | T21: =Z9 -> 4333 | U21: =W21*T22/T21 -> 12.11631664 | V21: =W21-U21 -> 512.8836834 | W21: =(Z7+U22)*U15 -> 525 | X21: =U21*T21/W21 -> 100 | Y21: =W21-U22 -> 210 | Z21: =(X21/1000000000)/(Z$12/Z$11) -> 1 | AA21: =(((Z$11*(X21/U$39))/(Z$11*(X21/U$39)+Z$12)))*100 -> 99.9000999 | AB21: =U21*Z13/W21 -> 13.84721902 | AL21: protein | AM21: conc. | AN21: buffer | AO21: protein | AP21: conc. | AQ21: volume | AR21: const. | AS21: variabl.
A22: 2 | B22: =F21 -> 500 | C22: =(1/H$6)*E21 -> 125 | D22: =(C22*H$6)-C22 -> 125 | E22: 250 | F22: =C22*F21/E22 -> 250 | G22: 125 | H22: 250 | I22: 99.60159363 | J22: =J21/H$6 -> 0.000576967459 | S22: 2 | T22: =Z8 -> 100 | U22: =W22*T23/T22 -> 315 | V22: =W22-U22 -> 315 | W22: =(2*Z7+U23)*U15 -> 630 | X22: =U22*X21/W22 -> 50 | Y22: =W22-U23 -> 420 | Z22: 0.5 | AA22: 99.8003992 | AB22: =AB21/Z$6 -> 6.923609508 | AD22: ßduplo sample | AK22: Vial | AL22: (µL) | AM22: =CONCATENATE("(",AO10,")") -> (nM) | AN22: (µL) | AO22: (µL) | AP22: =CONCATENATE("(",AT10,")") -> (uM) | AQ22: (µL) | AR22: =CONCATENATE("(",AO10,")") -> (nM) | AS22: =CONCATENATE("(",AT10,")") -> (uM) | AV22: Don't forget to make a sample without competitor
A23: 3 | B23: 250 | C23: 125 | D23: 125 | E23: 250 | F23: 125 | G23: 125 | H23: 125 | I23: 99.20634921 | J23: 0.0002884837295 | S23: 3 | T23: =T22/Z$6 -> 50 | U23: =Z$7/(Z$6-1) -> 210 | V23: =Z$7 -> 210 | W23: =SUM(U23:V23) -> 420 | X23: 25 | Y23: 210 | Z23: 0.25 | AA23: 99.60159363 | AB23: 3.461804754 | AK23: 0 | AL23: =AL25 -> 62.5 | AM23: =AM25 -> 250 | AN23: =AN25 -> 62.5 | AO23: 0 | AP23: 0 | AQ23: =AL24+AO24-AO25 -> 125 | AR23: =AR24 -> 125 | AS23: 0
A24: 4 | B24: 125 | C24: 125 | D24: 125 | E24: 250 | F24: 62.5 | G24: 125 | H24: 62.5 | I24: 98.42519685 | J24: 0.0001442418648 | S24: 4 | T24: =T23/Z$6 -> 25 | U24: =Z$7/(Z$6-1) -> 210 | V24: =Z$7 -> 210 | W24: =SUM(U24:V24) -> 420 | X24: 12.5 | Y24: 210 | Z24: 0.125 | AA24: 99.20634921 | AB24: 1.730902377 | AK24: 1 | AL24: =AN9 -> 125 | AM24: =AN10*2 -> 250 | AN24: - | AO24: =AS9 -> 125 | AP24: =AS10*2 -> 1000 | AQ24: =AL24+AO24-AO25 -> 125 | AR24: =AL24*AM24/(AL24+AO24) -> 125 | AS24: =(AO24*AP24)/(AL24+AO24) -> 500
A25: 5 | B25: 62.5 | C25: 125 | D25: 125 | E25: 250 | F25: 31.25 | G25: 125 | H25: 31.25 | I25: 96.89922481 | J25: 7.212093238e-05 | S25: 5 | T25: 12.5 | U25: 210 | V25: 210 | W25: 420 | X25: 6.25 | Y25: 210 | Z25: 0.0625 | AA25: 98.42519685 | AB25: 0.8654511886 | AK25: 2 | AL25: =AL24/2 -> 62.5 | AM25: =AM24 -> 250 | AN25: =AL25 -> 62.5 | AO25: =AO24*(1/(AS8-1)) -> 125 | AP25: =AS24 -> 500 | AQ25: =AL25+AN25+AO25-AO26 -> 125 | AR25: =(AL25*AM25+AO24*AR24)/(AL25+AN25+AO24) -> 125 | AS25: =(AO25*AP25)/(AL25+AN25+AO25) -> 250
A26: 6 | B26: 31.25 | C26: 125 | D26: 125 | E26: 250 | F26: 15.625 | G26: 125 | H26: 15.625 | I26: 93.98496241 | J26: 3.606046619e-05 | S26: 6 | T26: 6.25 | U26: 210 | V26: 210 | W26: 420 | X26: 3.125 | Y26: 210 | Z26: 0.03125 | AA26: 96.89922481 | AB26: 0.4327255943 | AK26: 3 | AL26: =AL25 -> 62.5 | AM26: =AM25 -> 250 | AN26: 62.5 | AO26: =AO25 -> 125 | AP26: =AS25 -> 250 | AQ26: 125 | AR26: 125 | AS26: =(AO26*AP26)/(AL26+AN26+AO26) -> 125
A27: 7 | B27: 15.625 | C27: 125 | D27: 125 | E27: 250 | F27: 7.8125 | G27: 125 | H27: 7.8125 | I27: 88.65248227 | J27: 1.803023309e-05 | S27: 7 | T27: 3.125 | U27: 210 | V27: 210 | W27: 420 | X27: 1.5625 | Y27: 210 | Z27: 0.015625 | AA27: 93.98496241 | AB27: 0.2163627971 | AK27: 4 | AL27: 62.5 | AM27: 250 | AN27: 62.5 | AO27: 125 | AP27: 125 | AQ27: 125 | AR27: 125 | AS27: 62.5
A28: 8 | B28: 7.8125 | C28: 125 | D28: 125 | E28: 250 | F28: 3.90625 | G28: 125 | H28: 3.90625 | I28: 79.61783439 | J28: 9.015116547e-06 | S28: 8 | T28: 1.5625 | U28: 210 | V28: 210 | W28: 420 | X28: 0.78125 | Y28: 210 | Z28: 0.0078125 | AA28: 88.65248227 | AB28: 0.1081813986 | AK28: 5 | AL28: 62.5 | AM28: 250 | AN28: 62.5 | AO28: 125 | AP28: 62.5 | AQ28: 125 | AR28: 125 | AS28: =(AO28*AP28)/(AL28+AN28+AO28) -> 31.25
A29: 9 | B29: 3.90625 | C29: 125 | D29: 125 | E29: 250 | F29: 1.953125 | G29: 125 | H29: 1.953125 | I29: 66.13756614 | J29: 4.507558274e-06 | S29: 9 | T29: 0.78125 | U29: 210 | V29: 210 | W29: 420 | X29: 0.390625 | Y29: 210 | Z29: 0.00390625 | AA29: 79.61783439 | AB29: 0.05409069928 | AK29: 6 | AL29: 62.5 | AM29: 250 | AN29: 62.5 | AO29: 125 | AP29: 31.25 | AQ29: 125 | AR29: 125 | AS29: 15.625
A30: 10 | B30: 1.953125 | C30: 125 | D30: 125 | E30: 250 | F30: 0.9765625 | G30: 250 | H30: 0.9765625 | I30: 49.40711462 | J30: 2.253779137e-06 | S30: 10 | T30: 0.390625 | U30: 210 | V30: 210 | W30: 420 | X30: 0.1953125 | Y30: 420 | Z30: 0.001953125 | AA30: 66.13756614 | AB30: 0.02704534964 | AK30: 7 | AL30: 62.5 | AM30: 250 | AN30: 62.5 | AO30: 125 | AP30: 15.625 | AQ30: 125 | AR30: 125 | AS30: 7.8125
AK31: 8 | AL31: 62.5 | AM31: 250 | AN31: 62.5 | AO31: 125 | AP31: 7.8125 | AQ31: 125 | AR31: 125 | AS31: 3.90625
AK32: 9 | AL32: =AL31 -> 62.5 | AM32: 250 | AN32: 62.5 | AO32: 125 | AP32: 3.90625 | AQ32: 125 | AR32: 125 | AS32: 1.953125
AK33: 10 | AL33: 62.5 | AM33: 250 | AN33: 62.5 | AO33: 125 | AP33: =AS32 -> 1.953125 | AQ33: =AL33+AN33+AO33 -> 250 | AR33: 125 | AS33: 0.9765625
B36: mM | C36: 1000 | T36: mM | U36: 1000 | AL36: mM
B37: nM | C37: 1000000000 | T37: nM | U37: 1000000000 | AL37: nM
B38: uM | C38: 1000000 | T38: uM | U38: 1000000 | AL38: uM
C39: =LOOKUP(I8,B36:B38,C36:C38) -> 1000000000 | U39: =LOOKUP(AA8,T36:T38,U36:U38) -> 1000000 | AL39: ug/mL
AL40: mg/mL

Sheet Equilibrium
A1: BiaCalculations | R1: BiaCalculations
A2: Equilibrium and dissociation | R2: Equilibrium and dissociation
B4: Kinetics | S4: Complex half life | Y4: Time to 5% dissociation | AD4: Time to 95% dissociation
B7: ka | C7: 500000 | D7: M-1s-1 | F7: KD | G7: =C8/C7 -> 1e-09 | H7: M | S7: kd | T7: t1/2 | U7: t1/2 | V7: t1/2 | Y7: kd | Z7: Time | AA7: Time | AD7: kd | AE7: Time | AF7: Time
B8: kd | C8: 0.0005 | D8: s-1 | S8: (s-1) | T8: (s) | U8: (min) | V8: (hour) | Y8: (s-1) | Z8: (min) | AA8: (hour) | AD8: (s-1) | AE8: (min) | AF8: (hour)
S9: 0.1 | T9: =LN(2)/S9 -> 6.931471806 | U9: =T9/60 -> 0.1155245301 | V9: =U9/60 -> 0.001925408835 | Y9: 0.1 | Z9: =(LN(100/95)/Y9)/60 -> 0.008548882398 | AA9: =Z9/60 -> 0.0001424813733 | AD9: 0.1 | AE9: =(LN(100/5)/AD9)/60 -> 0.4992887123 | AF9: =AE9/60 -> 0.008321478538
B10: Rmax | C10: 100 | D10: RU | S10: 0.01 | T10: 69.31471806 | U10: 1.155245301 | V10: 0.01925408835 | Y10: 0.01 | Z10: 0.08548882398 | AA10: 0.001424813733 | AD10: 0.01 | AE10: 4.992887123 | AF10: 0.08321478538
B11: Rmax | C11: 95 | D11: % | S11: 0.001 | T11: 693.1471806 | U11: 11.55245301 | V11: 0.1925408835 | Y11: 0.001 | Z11: 0.8548882398 | AA11: 0.01424813733 | AD11: 0.001 | AE11: 49.92887123 | AF11: 0.8321478538
S12: 0.0001 | T12: 6931.471806 | U12: 115.5245301 | V12: 1.925408835 | Y12: 0.0001 | Z12: 8.548882398 | AA12: 0.1424813733 | AD12: 0.0001 | AE12: 499.2887123 | AF12: 8.321478538
S13: 1e-05 | T13: 69314.71806 | U13: 1155.245301 | V13: 19.25408835 | Y13: 1e-05 | Z13: 85.48882398 | AA13: 1.424813733 | AD13: 1e-05 | AE13: 4992.887123 | AF13: 83.21478538
B14: Theoretical Req | H14: Time to equilibrium | M14: Complex half life | S14: 1e-06 | T14: 693147.1806 | U14: 11552.45301 | V14: 192.5408835 | Y14: 1e-06 | Z14: 854.8882398 | AA14: 14.24813733 | AD14: 1e-06 | AE14: 49928.87123 | AF14: 832.1478538
B16: C | C16: C | D16: KD | E16: Rmax | F16: Rmax | H16: C | I16: Time | J16: Time | K16: Time | M16: kd | N16: t1/2 | O16: t1/2 | P16: t1/2
B17: (M) | C17: (nM) | D17: (x) | E17: (RU) | F17: (%) | H17: (M) | I17: (s) | J17: (min) | K17: (hour) | M17: (s-1) | N17: (s) | O17: (min) | P17: (hour)
B18: =Dilution!F21/1000000000 -> 5e-07 | C18: =B18*1000000000 -> 500 | D18: =B18/G$7 -> 500 | E18: =(($C$7*B18)/($C$7*B18+$C$8))*$C$10 -> 99.8003992 | F18: =(E18/C$10)*100 -> 99.8003992 | H18: =B18 -> 5e-07 | I18: =(-LN(1-(C$11/100)))/((C$7*H18)+C$8) -> 11.95901107 | J18: =I18/60 -> 0.1993168512 | K18: =J18/60 -> 0.00332194752 | M18: =C8 -> 0.0005 | N18: =LN(2)/M18 -> 1386.294361 | O18: =N18/60 -> 23.10490602 | P18: =O18/60 -> 0.385081767
B19: =Dilution!F22/1000000000 -> 2.5e-07 | C19: =B19*1000000000 -> 250 | D19: =B19/G$7 -> 250 | E19: =(($C$7*B19)/($C$7*B19+$C$8))*$C$10 -> 99.60159363 | F19: 99.60159363 | H19: =B19 -> 2.5e-07 | I19: 23.87037668 | J19: =I19/60 -> 0.3978396114 | K19: 0.006630660189
B20: =Dilution!F23/1000000000 -> 1.25e-07 | C20: 125 | D20: 125 | E20: 99.20634921 | F20: =(E20/C$10)*100 -> 99.20634921 | H20: 1.25e-07 | I20: 47.55130593 | J20: 0.7925217655 | K20: 0.01320869609
B21: =Dilution!F24/1000000000 -> 6.25e-08 | C21: 62.5 | D21: 62.5 | E21: 98.42519685 | F21: 98.42519685 | H21: 6.25e-08 | I21: =(-LN(1-(C$11/100)))/((C$7*H21)+C$8) -> 94.3537724 | J21: =I21/60 -> 1.572562873 | K21: 0.02620938122 | M21: Time to 5% dissociation
B22: =Dilution!F25/1000000000 -> 3.125e-08 | C22: 31.25 | D22: 31.25 | E22: 96.89922481 | F22: 96.89922481 | H22: 3.125e-08 | I22: 185.7818464 | J22: 3.096364107 | K22: 0.05160606845 | M22: kd | N22: Time | O22: Time | P22: R
B23: =Dilution!F26/1000000000 -> 1.5625e-08 | C23: 15.625 | D23: 15.625 | E23: 93.98496241 | F23: 93.98496241 | H23: 1.5625e-08 | I23: 360.3888449 | J23: 6.006480749 | K23: 0.1001080125 | M23: (s-1) | N23: (min) | O23: (hour) | P23: (RU)
B24: =Dilution!F27/1000000000 -> 7.8125e-09 | C24: 7.8125 | D24: 7.8125 | E24: 88.65248227 | F24: 88.65248227 | H24: 7.8125e-09 | I24: 679.8825018 | J24: 11.33137503 | K24: 0.1888562505 | M24: =C8 -> 0.0005 | N24: =(LN(100/95)/M24)/60 -> 1.70977648 | O24: =N24/60 -> 0.02849627466 | P24: =C10*(EXP(-(M24*N24*60))) -> 95
B25: =Dilution!F28/1000000000 -> 3.90625e-09 | C25: 3.90625 | D25: 3.90625 | E25: 79.61783439 | F25: 79.61783439 | H25: =B25 -> 3.90625e-09 | I25: 1221.190226 | J25: 20.35317044 | K25: 0.3392195073
B26: =Dilution!F29/1000000000 -> 1.953125e-09 | C26: 1.953125 | D26: 1.953125 | E26: 66.13756614 | F26: 66.13756614 | H26: =B26 -> 1.953125e-09 | I26: 2028.85572 | J26: =I26/60 -> 33.81426199 | K26: =J26/60 -> 0.5635710332
B27: =Dilution!F30/1000000000 -> 9.765625e-10 | C27: 0.9765625 | D27: 0.9765625 | E27: 49.40711462 | F27: 49.40711462 | H27: =B27 -> 9.765625e-10 | I27: 3031.254791 | J27: =I27/60 -> 50.52091318 | K27: =J27/60 -> 0.8420152196 | M27: Time to 95% dissociation
B28: Use concentrations between 10 - 90% Rmax | M28: kd | N28: Time | O28: Time | P28: R
M29: (s-1) | N29: (min) | O29: (hour) | P29: (RU)
B30: The concentrations are copied from the dilution page. | M30: =C8 -> 0.0005 | N30: =(LN(100/5)/M30)/60 -> 99.85774245 | O30: =N30/60 -> 1.664295708 | P30: =C10*(EXP(-(M30*N30*60))) -> 5
B57: Kinetics
B60: ka | C60: =C7 -> 500000 | D60: M-1s-1 | F60: KD | G60: =G7 -> 1e-09 | H60: M
B61: kd | C61: =C8 -> 0.0005 | D61: s-1
B63: Rmax | C63: =C10 -> 100 | D63: RU
B64: Rmax | C64: =C11 -> 95 | D64: %
B66: Kinetics copied from above.

Sheet Complex calc.
A1: BiaCalculations
A2: Complex calculations
B4: When [Lo], [Ao] and KD are known | J4: [LA] = (([Lo] + [Ao] + KD) - (([Lo] + [Ao] + KD)^2 - 4*[Lo]*[Ao])^0.5)/2 | Q4: At equilibrium the amount of complex is constant | Y4: [LA] = [L] * [A] * KD
Q5: 1 | R5: L0 = L + LA
B6: Ligand | C6: 2 | D6: µM | F6: 1) Add concentration constant component 2) Add highest concentration variable component 3) Add equilibrium dissocation constant 4) Add dilution step for variable component | L6: [LA] = complex | Q6: 2 | R6: A0 = A + LA
B7: Analyte | C7: 10 | D7: µM | L7: [Lo] = ligand = constant
B8: KD | C8: 3.5e-09 | D8: (M-1) | L8: [Ao] = analyte = variabel | Q8: There are two situations when calculation the complex between two molecules.
B9: Dilution | C9: 2 | D9: (x) | Q9: 1 | R9: [Ligand] =< KD
Q10: 2 | R10: [Ligand] >> KD
B11: Ligand | C11: Analyte | D11: Complex
B12: FXI | C12: FIX | D12: =CONCATENATE(B12,"_",C12) -> FXI_FIX | E12: Sat. | F12: =CONCATENATE(B12,":",C12) -> FXI:FIX | Q12: A | R12: L0 >> A0 | S12: then L = L0 | U12: ML = M0.L / (KD + L) | X12: if L0 >> M0 then ML = M0.L0/(KD + L)
A13: n | B13: (µM) | C13: (µM) | D13: (µM) | E13: (%) | F13: (1:x)
A14: 1 | B14: =C6 -> 2 | C14: =C7 -> 10 | D14: =G27*1000000 -> 1.999125478 | E14: =D14/B14*100 -> 99.95627391 | F14: =C14/B14 -> 5 | R14: when dividing by M0 the fractional saturaton of A is calculated by | Y14: Y = [ML]/[M0] = L/(KD + L)
A15: 2 | B15: =B14 -> 2 | C15: =C14/C$9 -> 5 | D15: 1.997671191 | E15: =D15/B15*100 -> 99.88355957 | F15: =C15/B15 -> 2.5
A16: 3 | B16: =B15 -> 2 | C16: 2.5 | D16: 1.98646136 | E16: 99.323068 | F16: 1.25 | Q16: B | R16: L0 = ? | U16: KD = ([M][L])/[ML] = [M0-ML][L0-ML]/[ML]
A17: 4 | B17: 2 | C17: 1.25 | D17: 1.244237827 | E17: 62.21189135 | F17: 0.625 | U17: ML = {(L0+M0+KD) - ((L0+M0+KD)^2 - 4 M0L0)^1/2}/2
A18: 5 | B18: 2 | C18: 0.625 | D18: 0.6234149528 | E18: 31.17074764 | F18: 0.3125
A19: 6 | B19: 2 | C19: 0.3125 | D19: 0.3118534406 | E19: 15.59267203 | F19: 0.15625
A20: 7 | B20: 2 | C20: 0.15625 | D20: 0.1559539993 | E20: 7.797699963 | F20: 0.078125
A21: 8 | B21: 2 | C21: 0.078125 | D21: 0.07798299269 | E21: 3.899149634 | F21: 0.0390625
A22: 9 | B22: 2 | C22: 0.0390625 | D22: 0.03899290557 | E22: 1.949645279 | F22: 0.01953125
A23: 10 | B23: 2 | C23: 0.01953125 | D23: 0.01949679473 | E23: 0.9748397363 | F23: 0.009765625
B25: Calculations in steps in M
B26: [L] | C26: [A] | D26: L+A+KD | E26: (L+A+KD)^2 | F26: 4*L*A | G26: [LA]
A27: 1 | B27: =B14/1000000 -> 2e-06 | C27: 1e-05 | D27: =B27+C27+C$8 -> 1.20035e-05 | E27: =(D27)^2 -> 1.440840122e-10 | F27: =4*B27*C27 -> 8e-11 | G27: =(D27-(E27-F27)^0.5)/2 -> 1.999125478e-06
A28: 2 | B28: 2e-06 | C28: 5e-06 | D28: 7.0035e-06 | E28: =(D28)^2 -> 4.904901225e-11 | F28: =4*B28*C28 -> 4e-11 | G28: 1.997671191e-06
A29: 3 | B29: 2e-06 | C29: 2.5e-06 | D29: 4.5035e-06 | E29: 2.028151225e-11 | F29: 2e-11 | G29: 1.98646136e-06
A30: 4 | B30: 2e-06 | C30: 1.25e-06 | D30: 3.2535e-06 | E30: 1.058526225e-11 | F30: 1e-11 | G30: 1.244237827e-06
A31: 5 | B31: 2e-06 | C31: 6.25e-07 | D31: 2.6285e-06 | E31: 6.90901225e-12 | F31: 5e-12 | G31: 6.234149528e-07
A32: 6 | B32: 2e-06 | C32: 3.125e-07 | D32: 2.316e-06 | E32: 5.363856e-12 | F32: 2.5e-12 | G32: 3.118534406e-07
A33: 7 | B33: 2e-06 | C33: 1.5625e-07 | D33: 2.15975e-06 | E33: 4.664520062e-12 | F33: 1.25e-12 | G33: 1.559539993e-07
A34: 8 | B34: 2e-06 | C34: 7.8125e-08 | D34: 2.081625e-06 | E34: 4.333162641e-12 | F34: 6.25e-13 | G34: 7.798299269e-08
A35: 9 | B35: 2e-06 | C35: 3.90625e-08 | D35: 2.0425625e-06 | E35: 4.172061566e-12 | F35: 3.125e-13 | G35: 3.899290557e-08
A36: 10 | B36: 2e-06 | C36: 1.953125e-08 | D36: 2.02303125e-06 | E36: 4.092655438e-12 | F36: 1.5625e-13 | G36: 1.949679473e-08
B39: When [Ligand] =< KD
B41: Req = (Rmax / (1 + (KD/C)))
B43: Req = value at equilibrium
B44: Rmax = maximal value at equilibrium
B45: KD = equilibrium dissociation constant | I45: 1) Add equilibrium dissocation constant 2) Add dilution step for variable component 3) Add concentration constant component 4) Add highest concentration variable component
B46: C = concentration analyte
B49: KD | C49: 1.2e-07 | D49: (M-1) | E49: Ligand | F49: 0.12 | G49: µM
B50: Dilution | C50: 2 | D50: (x) | E50: Analyte | F50: 10 | G50: µM
B52: Ligand | C52: Analyte | D52: Complex
B53: FXI | C53: FIX | D53: =CONCATENATE(B53,"_",C53) -> FXI_FIX | E53: Sat. | F53: =CONCATENATE(B53,":",C53) -> FXI:FIX
A54: n | B54: (µM) | C54: (µM) | D54: (µM) | E54: (%) | F54: (1:x)
A55: 1 | B55: =F49 -> 0.12 | C55: =F50 -> 10 | D55: =(B55/1000000)/(1+(C$49/(C55/1000000)))*1000000 -> 0.1185770751 | E55: =(D55/B55)*100 -> 98.81422925 | F55: =C55/B55 -> 83.33333333
A56: 2 | B56: =B55 -> 0.12 | C56: =C55/C$50 -> 5 | D56: =(B56/1000000)/(1+(C$49/(C56/1000000)))*1000000 -> 0.1171875 | E56: =(D56/B56)*100 -> 97.65625 | F56: =C56/B56 -> 41.66666667
A57: 3 | B57: =B56 -> 0.12 | C57: =C56/C$50 -> 2.5 | D57: 0.1145038168 | E57: 95.41984733 | F57: 20.83333333
A58: 4 | B58: 0.12 | C58: 1.25 | D58: 0.1094890511 | E58: 91.24087591 | F58: 10.41666667
A59: 5 | B59: 0.12 | C59: 0.625 | D59: 0.1006711409 | E59: 83.89261745 | F59: 5.208333333
A60: 6 | B60: 0.12 | C60: 0.3125 | D60: 0.08670520231 | E60: 72.25433526 | F60: 2.604166667
A61: 7 | B61: 0.12 | C61: 0.15625 | D61: 0.06787330317 | E61: 56.56108597 | F61: 1.302083333
A62: 8 | B62: 0.12 | C62: 0.078125 | D62: 0.04731861199 | E62: 39.43217666 | F62: 0.6510416667
A63: 9 | B63: 0.12 | C63: 0.0390625 | D63: 0.02946954813 | E63: 24.55795678 | F63: 0.3255208333
A64: 10 | B64: 0.12 | C64: 0.01953125 | D64: 0.01679731243 | E64: 13.99776036 | F64: 0.1627604167
B78: Req = (Rmax / (1 + (KD/C)))
B80: Req | C80: complex concentratie
B81: Rmax | C81: ligand concentratie
B82: C | C82: analyte concentratie
B83: KD | C83: equilibrium dissociation constant
B86: KD | C86: 1.2e-07 | D86: (M-1) | E86: Ligand | F86: 2e-06 | G86: M
B87: Dilution | C87: 3 | D87: (x) | E87: Analyte | F87: 1e-05 | G87: M
B89: Rmax | C89: C | D89: Req | E89: Req | F89: KD
A90: n | B90: (M) | C90: (M) | D90: (M) | E90: (%) | F90: (x)
A91: 1 | B91: =F86 -> 2e-06 | C91: =F87 -> 1e-05 | D91: =(B91/(1+(C$86/C91))) -> 1.976284585e-06 | E91: =(D91/B91)*100 -> 98.81422925 | F91: =(C91/C$86) -> 83.33333333
A92: 2 | B92: =B91 -> 2e-06 | C92: =C91/C$87 -> 3.333333333e-06 | D92: 1.930501931e-06 | E92: =(D92/B92)*100 -> 96.52509653 | F92: 27.77777778
A93: 3 | B93: =B92 -> 2e-06 | C93: 1.111111111e-06 | D93: 1.805054152e-06 | E93: 90.25270758 | F93: 9.259259259
A94: 4 | B94: 2e-06 | C94: 3.703703704e-07 | D94: 1.510574018e-06 | E94: 75.52870091 | F94: 3.086419753
A95: 5 | B95: 2e-06 | C95: 1.234567901e-07 | D95: 1.014198783e-06 | E95: 50.70993915 | F95: 1.028806584
A96: 6 | B96: 2e-06 | C96: 4.115226337e-08 | D96: 5.107252298e-07 | E96: 25.53626149 | F96: 0.3429355281
A97: 7 | B97: 2e-06 | C97: 1.371742112e-08 | D97: 2.051702913e-07 | E97: 10.25851457 | F97: 0.1143118427
A98: 8 | B98: 2e-06 | C98: 4.572473708e-09 | D98: 7.341065923e-08 | E98: 3.670532961 | F98: 0.03810394757
A99: 9 | B99: 2e-06 | C99: 1.524157903e-09 | D99: 2.508403151e-08 | E99: 1.254201575 | F99: 0.01270131586
A100: 10 | B100: 2e-06 | C100: 5.080526343e-10 | D100: 8.431845394e-09 | E100: 0.4215922697 | F100: 0.004233771952

Sheet Solvent calibration
A1: BiaCalculations
A2: Solvent calculator
P3: This page is not protected.
C5: Solvent
C6: Solvent stock | E6: 10 | F6: (%)
C7: no. Dilutions | E7: 6
C8: Lowest | E8: 2 | F8: (%)
C9: Highest | E9: 6 | F9: (%)
C10: Volume | E10: 500 | F10: (µl)
C12: Solvent calibration solutions | G12: Calibration response levels
C13: Solvent | D13: Buffer | E13: Volume | F13: Conc. | G13: Reference | H13: Active | I13: Correction
C14: (µl) | D14: (µl) | E14: (µl) | F14: (%) | G14: (RU) | H14: (RU) | I14: (RU)
B15: 1 | C15: =E$10*E8/E$6 -> 100 | D15: =E$10-C15 -> 400 | E15: =C15+D15 -> 500 | F15: =C15*E$6/E15 -> 2 | G15: -515 | H15: -487 | I15: =H15-G15 -> 28
B16: 2 | C16: =(E$10*((E$9-E$8)/(E$7-1))/E$6)*(B16-1)+C$15 -> 140 | D16: 360 | E16: =C16+D16 -> 500 | F16: 2.8 | G16: -285 | H16: -265 | I16: =H16-G16 -> 20
B17: 3 | C17: 180 | D17: 320 | E17: =C17+D17 -> 500 | F17: 3.6 | G17: -85 | H17: -77 | I17: 8
B18: 4 | C18: 220 | D18: 280 | E18: =C18+D18 -> 500 | F18: 4.4 | G18: 171 | H18: 169 | I18: -2
B19: 5 | C19: 260 | D19: 240 | E19: 500 | F19: 5.2 | G19: 442 | H19: 428 | I19: -14
B20: 6 | C20: 300 | D20: 200 | E20: 500 | F20: 6 | G20: 642 | H20: 617 | I20: -25
B21: 7 | C21: 340 | D21: 160 | E21: 500 | F21: 6.8 | G21: 908 | H21: 870 | I21: -38
B22: 8 | C22: 380 | D22: 120 | E22: 500 | F22: 7.6 | G22: 1085 | H22: 1038 | I22: -47
B23: 9 | C23: 420 | D23: 80 | E23: =C23+D23 -> 500 | F23: 8.4 | I23: 0
B24: 10 | C24: 460 | D24: 40 | E24: 500 | F24: 9.2 | I24: 0
C27: 1) Set solvent stock concentration 2) Set number of dilutions 3) Set highest solvent control concentration 4) Set lowest solvent control concentration 5) Set volume of sample 6) Add calibration response levels after measuring 7) Use the correction values to correct measurements
I29: ref: | K29: Frostell-Karlsson, A., et al. (2000). "Biosensor analysis of the interaction between immobilized human serum albumin and drug compounds for prediction of human serum albumin binding levels." J.Med.Chem. 43(10): 1986-1992.

Sheet Simulation
A1: BiaCalculations | P1: BiaCalculations
A2: Kinetic simulations / Association | P2: Kinetic simulations / Dissociation
B4: Kinetic parameters | I4: Association formulas used | Q4: Dissociation formula used
I5: Rt = Req ( 1- e^ -(ka * C + kd)(t-t0)
C6: Rt1 | D6: Rt2 | E6: Rt3 | F6: Rt4 | I6: Req = (ka*C/ka*C+kd)*Rmax | Q6: Rt=R0 * e-kd(t-t0)
B7: Rmax | C7: 100 | D7: 100 | E7: 100 | F7: 100
B8: ka | C8: 100000 | D8: 100000 | E8: 100000 | F8: 100000 | G8: M-1s-1
B9: C | C9: 1.25e-08 | D9: 2.5e-08 | E9: 5e-08 | F9: 1e-07 | G9: M | I9: 1) Add Rmax for the curves 2) Add ka, analyte C and kd 3) Add time step size (tstep) in seconds 4) Req is calculated 5) kobs (ka*C+kd, KD and C/KD are calculated 6) tmax is calculated based on t step 7) response at tmax and %response to Req and Rmax are calculated
B10: kd | C10: 0.01 | D10: 0.01 | E10: 0.01 | F10: 0.01 | G10: s-1
B11: Req | C11: =(C8*C9/(C8*C9+C10))*C7 -> 11.11111111 | D11: =(D8*D9/(D8*D9+D10))*D7 -> 20 | E11: =(E8*E9/(E8*E9+E10))*E7 -> 33.33333333 | F11: =(F8*F9/(F8*F9+F10))*F7 -> 50
B12: ka*C+kd | C12: =C8*C9+C10 -> 0.01125 | D12: =D8*D9+D10 -> 0.0125 | E12: =E8*E9+E10 -> 0.015 | F12: =F8*F9+F10 -> 0.02
B13: KD | C13: =C10/C8 -> 1e-07 | D13: =D10/D8 -> 1e-07 | E13: =E10/E8 -> 1e-07 | F13: =F10/F8 -> 1e-07 | G13: M
B14: C (x KD) | C14: =C9/C13 -> 0.125 | D14: =D9/D13 -> 0.25 | E14: =E9/E13 -> 0.5 | F14: =F9/F13 -> 1 | G14: x
B16: tmax | C16: =$B225 -> 400 | D16: =$B225 -> 400 | E16: =$B225 -> 400 | F16: =$B225 -> 400 | G16: s
B17: R at tmax | C17: =C225 -> 10.98767782 | D17: =D225 -> 19.86524106 | E17: =E225 -> 33.25070826 | F17: =F225 -> 49.98322687 | G17: RU
B18: % of Req | C18: =(C17/C11)*100 -> 98.88910035 | D18: =(D17/D11)*100 -> 99.3262053 | E18: =(E17/E11)*100 -> 99.75212478 | F18: =(F17/F11)*100 -> 99.96645374 | G18: %
B19: % of Rmax | C19: =(C17/C7)*100 -> 10.98767782 | D19: =(D17/D7)*100 -> 19.86524106 | E19: =(E17/E7)*100 -> 33.25070826 | F19: =(F17/F7)*100 -> 49.98322687 | G19: %
B21: tstep
B22: 2 | C22: s
B24: t-to | C24: Rt1 | D24: Rt2 | E24: Rt3 | F24: Rt4 | Q24: kd | R24: =C10 -> 0.01 | S24: =D10 -> 0.01 | T24: =E10 -> 0.01 | U24: =F10 -> 0.01
B25: 0 | C25: =C$11*(1-(EXP(-((C$12*B25))))) -> 0 | D25: =D$11*(1-(EXP(-((D$12*$B25))))) -> 0 | E25: 0 | F25: 0
B26: =B25+B$22 -> 2 | C26: 0.2472084756 | D26: 0.4938017594 | E26: 0.9851488817 | F26: 1.960528042 | Q26: t-to | R26: =C24 -> Rt1 | S26: =D24 -> Rt2 | T26: =E24 -> Rt3 | U26: =F24 -> Rt4
B27: 4 | C27: 0.4889168685 | D27: 0.97541151 | E27: 1.941182214 | F27: 3.844182681 | Q27: =B25 -> 0 | R27: =C$225*EXP(-C$10*Q27) -> 10.98767782 | S27: =D$225*EXP(-D$10*Q27) -> 19.86524106 | T27: =E$225*EXP(-E$10*Q27) -> 33.25070826 | U27: =F$225*EXP(-F$10*Q27) -> 49.98322687
B28: 6 | C28: 0.7252475487 | D28: 1.445130273 | E28: 2.868960491 | F28: 5.653978164 | Q28: 2 | R28: 10.77010722 | S28: 19.47188293 | T28: 32.59230012 | U28: 48.99349266
B29: 8 | C29: 0.9563201637 | D29: 1.903251639 | E29: 3.769318776 | F29: 7.392810552 | Q29: 4 | R29: 10.55684481 | S29: 19.08631382 | T29: 31.94692934 | U29: 48.02335651
B30: 10 | C30: 1.182251699 | D30: 2.350061948 | E30: 4.643067452 | F30: 9.063462346 | Q30: 6 | R30: 10.34780527 | S30: 18.70837948 | T30: 31.31433776 | U30: 47.07243034
B31: 12 | C31: 1.403156537 | D31: 2.785840471 | E31: 5.490992953 | F31: 10.66860695 | Q31: 8 | R31: 10.142905 | S31: 18.33792875 | T31: 30.69427232 | U31: 46.14033377
B32: 14 | C32: 1.619146515 | D32: 3.210859585 | E32: 6.313858468 | F32: 12.21081293 | Q32: 10 | R32: 9.942062025 | S32: 17.97481343 | T32: 30.08648501 | U32: 45.22669394
B33: 16 | C33: 1.830330984 | D33: 3.625384938 | E33: 7.112404631 | F33: 13.69254815 | Q33: 12 | R33: 9.745196007 | S33: 17.61888828 | T33: 29.49073269 | U33: 44.3311454
B34: 18 | C34: 2.03681686 | D34: 4.029675625 | E34: 7.887350189 | F34: 15.1161837 | Q34: 14 | R34: 9.552228197 | S34: 17.27001091 | T34: 28.90677706 | U34: 43.45332991
B35: 20 | C35: 2.23870868 | D35: 4.423984339 | E35: 8.639392644 | F35: 16.4839977 | Q35: 16 | R35: 9.363081406 | S35: 16.92804179 | T35: 28.33438452 | U35: 42.59289633
B36: 22 | C36: 2.436108658 | D36: 4.808557536 | E36: 9.369208886 | F36: 17.79817895 | Q36: 18 | R36: 9.177679972 | S36: 16.5928441 | T36: 27.77332612 | U36: 41.74950047
B37: 24 | C37: 2.62911673 | D37: 5.183635586 | E37: 10.0774558 | F37: 19.06083041 | Q37: 20 | R37: 8.995949733 | S37: 16.26428377 | T37: 27.22337741 | U37: 40.92280498
B38: 26 | C38: 2.817830611 | D38: 5.549452927 | E38: 10.76477085 | F38: 20.2739726 | Q38: 22 | R38: 8.817817993 | S38: 15.94222938 | T38: 26.68431842 | U38: 40.11247914
B39: 28 | C39: 3.002345841 | D39: 5.906238206 | E39: 11.43177267 | F39: 21.43954681 | Q39: 24 | R39: 8.643213499 | S39: 15.62655208 | T39: 26.15593352 | U39: 39.31819884
B40: 30 | C40: 3.182755837 | D40: 6.254214424 | E40: 12.07906161 | F40: 22.5594182 | Q40: 26 | R40: 8.472066405 | S40: 15.31712562 | T40: 25.63801133 | U40: 38.53964634
B41: 32 | C41: 3.359151933 | D41: 6.593599079 | E41: 12.70722027 | F41: 23.6353788 | Q41: 28 | R41: 8.30430825 | S41: 15.01382621 | T41: 25.1303447 | U41: 37.77651021
B42: 34 | C42: 3.531623434 | D42: 6.924604297 | E42: 13.31681404 | F42: 24.66915038 | Q42: 30 | R42: 8.139871929 | S42: 14.71653254 | T42: 24.63273053 | U42: 37.02848519
B43: 36 | C43: 3.700257657 | D43: 7.247436968 | E43: 13.90839159 | F43: 25.6623872 | Q43: 32 | R43: 7.978691666 | S43: 14.42512567 | T43: 24.14496979 | U43: 36.29527206
B44: 38 | C44: 3.865139978 | D44: 7.562298871 | E44: 14.48248538 | F44: 26.61667865 | Q44: 34 | R44: 7.820702986 | S44: 14.13948904 | T44: 23.66686735 | U44: 35.57657752
B45: 40 | C45: 4.026353871 | D45: =D$11*(1-(EXP(-((D$12*$B45))))) -> 7.869386806 | E45: 15.03961213 | F45: 27.53355179 | Q45: 36 | R45: 7.665842691 | S45: 13.8595084 | T45: 23.19823198 | U45: 34.87211409
B46: 42 | C46: 4.183980954 | D46: 8.168892713 | E46: 15.5802733 | F46: 28.41447383 | Q46: 38 | R46: 7.514048835 | S46: 13.58507175 | T46: 22.73887621 | U46: 34.18159996
B47: 44 | C47: 4.33810103 | D47: 8.461003792 | E47: 16.10495552 | F47: 29.26085442 | Q47: 40 | R47: 7.3652607 | S47: 13.3160693 | T47: 22.28861629 | U47: 33.50475894
B48: 46 | C48: 4.488792125 | D48: 8.745902624 | E48: 16.61413103 | F48: 30.07404795 | Q48: 42 | R48: 7.219418766 | S48: 13.05239346 | T48: 21.84727212 | U48: 32.84132026
B49: 48 | C49: 4.636130529 | D49: 9.023767278 | E49: 17.10825813 | F49: 30.8553557 | Q49: 44 | R49: 7.076464697 | S49: 12.79393876 | T49: 21.41466715 | U49: 32.19101855
B50: 50 | C50: 4.780190836 | D50: 9.29477143 | E50: 17.58778158 | F50: 31.60602794 | Q50: 46 | R50: 6.936341307 | S50: 12.5406018 | T50: 20.99062833 | U50: 31.55359367
B51: 52 | C51: 4.92104598 | D51: 9.559084465 | E51: 18.05313296 | F51: 32.3272659 | Q51: 48 | R51: 6.798992547 | S51: 12.29228124 | T51: 20.57498604 | U51: 30.92879066
B52: 54 | C52: 5.058767271 | D52: 9.816871588 | E52: 18.50473113 | F52: 33.02022372 | Q52: 50 | R52: 6.664363475 | S52: 12.04887777 | T52: 20.16757402 | U52: 30.31635957
B53: 56 | C53: 5.193424433 | D53: 10.06829392 | E53: 18.94298255 | F53: 33.68601027 | Q53: 52 | R53: 6.532400236 | S53: 11.810294 | T53: 19.7682293 | U53: 29.71605543
B54: 58 | C54: 5.325085641 | D54: 10.31350862 | E54: 19.36828169 | F54: 34.32569096 | Q54: 54 | R54: 6.403050045 | S54: 11.57643451 | T54: 19.37679213 | U54: 29.12763811
B55: 60 | C55: 5.453817549 | D55: 10.55266895 | E55: 19.78101134 | F55: 34.9402894 | Q55: 56 | R55: 6.276261159 | S55: 11.34720575 | T55: 18.99310594 | U55: 28.55087223
B56: 62 | C56: 5.579685331 | D56: 10.78592438 | E56: 20.18154299 | F56: 35.5307891 | Q56: 58 | R56: 6.151982862 | S56: 11.12251602 | T56: 18.61701724 | U56: 27.98552708
B57: 64 | C57: 5.702752712 | D57: 11.01342072 | E57: 20.57023713 | F57: 36.09813498 | Q57: 60 | R57: 6.030165439 | S57: 10.90227545 | T57: 18.2483756 | U57: 27.43137652
B58: =B57+B$22 -> 66 | C58: 5.823081995 | D58: 11.23530015 | E58: 20.94744363 | F58: 36.6432349 | Q58: 62 | R58: 5.910760163 | S58: 10.68639593 | T58: 17.88703355 | U58: 26.88819887
B59: 68 | C59: 5.9407341 | D59: 11.45170136 | E59: 21.31350199 | F59: 37.16696115 | Q59: =B57 -> 64 | R59: 5.79371927 | S59: 10.47479111 | T59: 17.53284656 | U59: 26.35577686
B60: 70 | C60: 6.055768592 | D60: 11.66275961 | E60: 21.6687417 | F60: 37.6701518 | Q60: 66 | R60: 5.678995942 | S60: 10.26737635 | T60: 17.18567294 | U60: 25.83389751
B61: 72 | C61: 6.168243709 | D61: 11.86860681 | E61: 22.01348248 | F61: 38.15361207 | Q61: 68 | R61: 5.566544288 | S61: 10.06406868 | T61: 16.84537381 | U61: 25.32235206
B62: 74 | C62: 6.278216393 | D62: 12.06937162 | E62: 22.34803463 | F62: 38.61811558 | Q62: 70 | R62: 5.456319326 | S62: 9.864786767 | T62: 16.51181306 | U62: 24.8209359
B63: 76 | C63: 6.385742321 | D63: 12.26517953 | E63: 22.67269927 | F63: 39.06440565 | Q63: 72 | R63: 5.348276965 | S63: 9.669450901 | T63: 16.18485726 | U63: 24.32944844
B64: 78 | C64: 6.490875931 | D64: 12.45615293 | E64: 22.98776862 | F64: 39.49319644 | Q64: 74 | R64: 5.242373985 | S64: 9.477982945 | T64: 15.86437561 | U64: 23.84769308
B65: 80 | C65: 6.593670447 | D65: =D$11*(1-(EXP(-((D$12*$B65))))) -> 12.64241118 | E65: 23.29352627 | F65: 39.9051741 | Q65: 76 | R65: 5.138568025 | S65: 9.290306308 | T65: 15.55023993 | U65: 23.37547712
B66: 82 | C66: 6.694177913 | D66: 12.82407069 | E66: 23.59024741 | F66: 40.30099789 | Q66: 78 | R66: 5.036817561 | S66: 9.106345918 | T66: 15.24232455 | U66: 22.91261166
B67: 84 | C67: 6.792449212 | D67: 13.00124502 | E67: 23.87819912 | F67: 40.6813012 | Q67: 80 | R67: 4.937081891 | S67: 8.926028187 | T67: 14.9405063 | U67: 22.45891155
B68: 86 | C68: 6.888534096 | D68: 13.17404489 | E68: 24.15764056 | F68: 41.0466926 | Q68: 82 | R68: 4.83932112 | S68: 8.749280987 | T68: 14.64466445 | U68: 22.01419531
B69: 88 | C69: 6.982481211 | D69: 13.34257833 | E69: 24.42882327 | F69: 41.39775681 | Q69: 84 | R69: 4.743496141 | S69: 8.576033616 | T69: 14.35468067 | U69: 21.57828503
B70: 90 | C70: 7.074338118 | D70: 13.50695065 | E70: 24.69199131 | F70: 41.73505559 | Q70: 86 | R70: 4.649568625 | S70: 8.406216773 | T70: 14.07043895 | U70: 21.15100636
B71: 92 | C71: 7.164151323 | D71: 13.66726461 | E71: 24.94738156 | F71: 42.05912869 | Q71: 88 | R71: 4.557500997 | S71: 8.239762528 | T71: 13.79182559 | U71: 20.73218838
B72: 94 | C72: 7.251966295 | D72: 13.82362041 | E72: 25.19522389 | F72: 42.37049471 | Q72: 90 | R72: 4.467256431 | S72: 8.076604298 | T72: 13.51872914 | U72: 20.32166354
B73: 96 | C73: 7.337827493 | D73: 13.97611576 | E73: 25.43574138 | F73: 42.66965189 | Q73: 92 | R73: 4.378798827 | S73: 7.916676818 | T73: 13.25104037 | U73: 19.91926764
B74: 98 | C74: 7.421778385 | D74: 14.12484599 | E74: 25.66915049 | F74: 42.95707895 | Q74: 94 | R74: 4.292092801 | S74: 7.759916114 | T74: 12.98865219 | U74: 19.52483972
B75: 100 | C75: 7.503861474 | D75: 14.26990406 | E75: 25.89566133 | F75: 43.23323584 | Q75: 96 | R75: 4.207103669 | S75: 7.60625948 | T75: 12.73145965 | U75: 19.13822199
B76: 102 | C76: 7.584118315 | D76: 14.41138064 | E76: 26.11547776 | F76: 43.49856446 | Q76: 98 | R76: 4.123797435 | S76: 7.455645451 | T76: 12.47935985 | U76: 18.7592598
B77: 104 | C77: 7.662589541 | D77: 14.54936414 | E77: 26.32879763 | F77: 43.75348939 | Q77: 100 | R77: 4.042140775 | S77: 7.30801378 | T77: 12.23225197 | U77: 18.38780157
B78: 106 | C78: 7.73931488 | D78: 14.68394082 | E78: 26.53581294 | F78: 43.99841857 | Q78: 102 | R78: 3.962101025 | S78: 7.163305412 | T78: 11.99003716 | U78: 18.0236987
B79: 108 | C79: 7.814333175 | D79: 14.81519479 | E79: 26.73671003 | F79: 44.23374395 | Q79: 104 | R79: 3.883646168 | S79: 7.021462461 | T79: 11.75261851 | U79: 17.66680556
B80: 110 | C80: 7.887682405 | D80: 14.94320808 | E80: 26.93166971 | F80: 44.45984208 | Q80: 106 | R80: 3.806744821 | S80: 6.882428189 | T80: 11.51990107 | U80: 17.31697937
B81: 112 | C81: 7.959399706 | D81: 15.06806072 | E81: 27.12086747 | F81: 44.67707478 | Q81: 108 | R81: 3.731366224 | S81: 6.74614698 | T81: 11.29179175 | U81: 16.9740802
B82: 114 | C82: 8.029521385 | D82: 15.18983074 | E82: 27.30447358 | F82: 44.88578966 | Q82: 110 | R82: 3.657480222 | S82: 6.61256432 | T82: 11.06819929 | U82: 16.63797089
B83: 116 | C83: 8.098082944 | D83: 15.30859424 | E83: 27.48265331 | F83: 45.08632072 | Q83: 112 | R83: 3.585057261 | S83: 6.481626773 | T83: 10.84903426 | U83: 16.308517
B84: 118 | C84: 8.165119093 | D84: 15.42442546 | E84: 27.65556704 | F84: 45.27898884 | Q84: 114 | R84: 3.514068371 | S84: 6.353281964 | T84: 10.63420899 | U84: 15.98558672
B85: 120 | C85: 8.230663771 | D85: =D$11*(1-(EXP(-((D$12*$B85))))) -> 15.5373968 | E85: 27.82337039 | F85: 45.46410234 | Q85: 116 | R85: 3.444485155 | S85: 6.227478552 | T85: 10.42363754 | U85: 15.6690509
B86: 122 | C86: 8.29475016 | D86: 15.64757886 | E86: 27.98621441 | F86: 45.64195743 | Q86: 118 | R86: 3.37627978 | S86: 6.104166215 | T86: 10.21723569 | U86: 15.3587829
B87: 124 | C87: 8.357410707 | D87: 15.75504052 | E87: 28.14424565 | F87: 45.81283872 | Q87: 120 | R87: 3.309424961 | S87: 5.983295626 | T87: 10.01492087 | U87: 15.05465863
B88: 126 | C88: 8.418677134 | D88: 15.85984895 | E88: 28.29760637 | F88: 45.97701966 | Q88: 122 | R88: 3.243893956 | S88: 5.864818434 | T88: 9.81661215 | U88: 14.75655641
B89: 128 | C89: =C$11*(1-(EXP(-((C$12*B89))))) -> 8.478580459 | D89: 15.96206964 | E89: 28.4464346 | F89: 46.13476298 | Q89: 124 | R89: 3.179660552 | S89: 5.748687248 | T89: 9.622230206 | U89: 14.46435702
B90: =B89+B$22 -> 130 | C90: 8.537151009 | D90: 16.0617665 | E90: 28.59086428 | F90: 46.28632109 | Q90: 126 | R90: 3.116699054 | S90: 5.634855614 | T90: 9.431697282 | U90: 14.17794356
B91: 132 | C91: 8.594418437 | D91: 16.15900183 | E91: 28.73102542 | F91: 46.43193652 | Q91: =B89 -> 128 | R91: =C$225*EXP(-C$10*Q91) -> 3.054984278 | S91: =D$225*EXP(-D$10*Q91) -> 5.523277997 | T91: =E$225*EXP(-E$10*Q91) -> 9.244937163 | U91: =F$225*EXP(-F$10*Q91) -> 13.89720147
B92: 134 | C92: 8.650411735 | D92: 16.25383641 | E92: 28.86704418 | F92: 46.57184229 | Q92: 130 | R92: 2.994491537 | S92: 5.413909765 | T92: 9.061875142 | U92: 13.62201844
B93: 136 | C93: 8.705159252 | D93: 16.34632952 | E93: 28.99904297 | F93: 46.70626228 | Q93: 132 | R93: 2.935196631 | S93: 5.306707169 | T93: 8.882437992 | U93: 13.3522844
B94: 138 | C94: 8.758688704 | D94: 16.43653896 | E94: 29.12714061 | F94: 46.83541158 | Q94: 134 | R94: 2.877075844 | S94: 5.201627327 | T94: 8.706553935 | U94: 13.08789146
B95: 140 | C95: 8.811027192 | D95: 16.52452113 | E95: 29.25145239 | F95: 46.95949687 | Q95: 136 | R95: 2.820105925 | S95: 5.098628205 | T95: 8.534152616 | U95: 12.82873384
B96: 142 | C96: 8.862201214 | D96: 16.61033101 | E96: 29.3720902 | F96: 47.0787167 | Q96: 138 | R96: 2.764264086 | S96: 4.997668602 | T96: 8.365165072 | U96: 12.57470789
B97: 144 | C97: 8.912236677 | D97: 16.69402224 | E97: 29.48916263 | F97: 47.19326186 | Q97: 140 | R97: 2.70952799 | S97: 4.898708133 | T97: 8.199523706 | U97: 12.32571199
B98: 146 | C98: 8.961158913 | D98: 16.77564712 | E98: 29.60277505 | F98: 47.30331563 | Q98: 142 | R98: 2.655875741 | S98: 4.801707213 | T98: 8.037162258 | U98: 12.08164654
B99: 148 | C99: 9.008992689 | D99: 16.85525667 | E99: 29.71302971 | F99: 47.40905414 | Q99: 144 | R99: 2.603285878 | S99: 4.70662704 | T99: 7.878015783 | U99: 11.84241391
B100: 150 | C100: 9.055762223 | D100: 16.93290066 | E100: 29.82002585 | F100: 47.51064658 | Q100: 146 | R100: 2.551737364 | S100: 4.61342958 | T100: 7.722020619 | U100: 11.60791841
B101: 152 | C101: 9.101491193 | D101: 17.00862762 | E101: 29.92385978 | F101: 47.60825553 | Q101: 148 | R101: 2.501209579 | S101: 4.522077554 | T101: 7.569114366 | U101: 11.37806622
B102: 154 | C102: 9.14620275 | D102: 17.08248486 | E102: 30.02462495 | F102: 47.70203717 | Q102: 150 | R102: 2.451682311 | S102: 4.432534419 | T102: 7.419235859 | U102: 11.15276542
B103: 156 | C103: 9.18991953 | D103: 17.15451857 | E103: 30.12241206 | F103: 47.79214158 | Q103: 152 | R103: 2.403135748 | S103: 4.344764357 | T103: 7.272325146 | U103: 10.93192586
B104: 158 | C104: 9.232663666 | D104: 17.22477376 | E104: 30.21730912 | F104: 47.87871295 | Q104: 154 | R104: 2.355550472 | S104: 4.258732259 | T104: 7.12832346 | U104: 10.71545923
B105: 160 | C105: 9.274456798 | D105: =D$11*(1-(EXP(-((D$12*$B105))))) -> 17.29329434 | E105: 30.30940156 | F105: 47.9618898 | Q105: 156 | R105: 2.308907448 | S105: 4.17440371 | T105: 6.987173199 | U105: 10.50327892
B106: 162 | C106: 9.315320084 | D106: 17.36012314 | E106: 30.39877225 | F106: 48.04180525 | Q106: 158 | R106: 2.263188017 | S106: 4.091744978 | T106: 6.848817899 | U106: 10.29530006
B107: 164 | C107: 9.355274212 | D107: 17.42530193 | E107: 30.48550163 | F107: 48.11858716 | Q107: 160 | R107: 2.218373892 | S107: 4.010722999 | T107: 6.713202219 | U107: 10.09143946
B108: 166 | C108: 9.394339411 | D108: 17.48887145 | E108: 30.56966778 | F108: 48.19235841 | Q108: 162 | R108: 2.174447146 | S108: 3.931305363 | T108: 6.580271908 | U108: 9.891615573
B109: 168 | C109: 9.432535457 | D109: 17.55087143 | E109: 30.65134644 | F109: 48.26323705 | Q109: 164 | R109: 2.131390207 | S109: 3.853460301 | T109: 6.449973795 | U109: 9.695748462
B110: 170 | C110: 9.469881689 | D110: 17.61134063 | E110: 30.73061113 | F110: 48.3313365 | Q110: 166 | R110: 2.089185854 | S110: 3.777156675 | T110: 6.322255756 | U110: 9.503759779
B111: 172 | C111: 9.506397013 | D111: 17.67031684 | E111: 30.8075332 | F111: 48.39676573 | Q111: 168 | R111: 2.047817202 | S111: 3.702363961 | T111: 6.197066705 | U111: 9.315572727
B112: 174 | C112: 9.542099916 | D112: 17.72783693 | E112: 30.88218187 | F112: 48.45962945 | Q112: 170 | R112: 2.007267705 | S112: 3.629052243 | T112: 6.074356562 | U112: 9.131112028
B113: 176 | C113: 9.577008474 | D113: 17.78393683 | E113: 30.95462435 | F113: 48.52002824 | Q113: 172 | R113: 1.967521141 | S113: 3.557192194 | T113: 5.954076244 | U113: 8.950303896
B114: 178 | C114: 9.61114036 | D114: 17.83865163 | E114: 31.02492582 | F114: 48.57805876 | Q114: 174 | R114: 1.928561612 | S114: 3.486755069 | T114: 5.836177635 | U114: 8.773076004
B115: 180 | C115: 9.644512853 | D115: 17.89201551 | E115: 31.09314958 | F115: 48.63381388 | Q115: 176 | R115: 1.890373534 | S115: 3.417712693 | T115: 5.720613575 | U115: 8.59935746
B116: 182 | C116: 9.67714285 | D116: 17.94406183 | E116: 31.15935701 | F116: 48.6873828 | Q116: 178 | R116: 1.85294163 | S116: 3.350037447 | T116: 5.607337836 | U116: 8.429078774
B117: 184 | C117: 9.70904687 | D117: 17.99482313 | E117: 31.22360772 | F117: 48.73885126 | Q117: 180 | R117: 1.816250927 | S117: 3.283702261 | T117: 5.496305108 | U117: 8.262171831
B118: 186 | C118: 9.740241065 | D118: 18.04433112 | E118: 31.28595954 | F118: 48.78830161 | Q118: 182 | R118: 1.780286749 | S118: 3.2186806 | T118: 5.387470975 | U118: 8.098569867
B119: 188 | C119: 9.770741227 | D119: 18.09261676 | E119: 31.34646858 | F119: 48.83581298 | Q119: 184 | R119: 1.74503471 | S119: 3.154946454 | T119: 5.280791902 | U119: 7.93820744
B120: 190 | C120: 9.800562799 | D120: 18.13971022 | E120: 31.4051893 | F120: 48.88146141 | Q120: 186 | R120: 1.710480707 | S120: 3.092474329 | T120: 5.176225217 | U120: 7.781020401
B121: 192 | C121: 9.829720877 | D121: 18.18564093 | E121: 31.46217457 | F121: 48.92531993 | Q121: 188 | R121: 1.67661092 | S121: 3.031239234 | T121: 5.07372909 | U121: 7.626945874
B122: =B121+B$22 -> 194 | C122: 9.858230225 | D122: 18.23043762 | E122: 31.51747567 | F122: 48.96745874 | Q122: 190 | R122: 1.643411799 | S122: 2.971216676 | T122: 4.973262523 | U122: 7.475922227
B123: 196 | C123: 9.886105274 | D123: 18.27412827 | E123: 31.57114238 | F123: 49.00794526 | Q123: =B121 -> 192 | R123: 1.610870066 | S123: 2.912382644 | T123: 4.874785327 | U123: 7.327889049
B124: 198 | C124: 9.913360139 | D124: 18.31674019 | E124: 31.62322299 | F124: 49.04684429 | Q124: 194 | R124: 1.578972701 | S124: 2.854713604 | T124: 4.77825811 | U124: 7.182787124
B125: 200 | C125: 9.940008616 | D125: =D$11*(1-(EXP(-((D$12*$B125))))) -> 18.35830003 | E125: 31.67376439 | F125: 49.08421806 | Q125: 196 | R125: 1.547706947 | S125: 2.798186487 | T125: 4.68364226 | U125: 7.040558409
B126: 202 | C126: 9.966064198 | D126: 18.39883374 | E126: 31.72281206 | F126: 49.12012638 | Q126: 198 | R126: 1.517060296 | S126: 2.742778682 | T126: 4.59089993 | U126: 6.901146012
B127: 204 | C127: 9.991540075 | D127: 18.43836668 | E127: 31.77041016 | F127: 49.15462672 | Q127: 200 | R127: 1.487020489 | S127: 2.688468025 | T127: 4.49999402 | U127: 6.764494165
B128: 206 | C128: 10.01644915 | D128: 18.47692354 | E128: 31.81660152 | F128: 49.18777428 | Q128: 202 | R128: 1.457575511 | S128: 2.635232792 | T128: 4.410888169 | U128: 6.630548206
B129: 208 | C129: 10.04080402 | D129: 18.51452844 | E129: 31.86142772 | F129: 49.2196221 | Q129: 204 | R129: 1.428713582 | S129: 2.583051686 | T129: 4.323546731 | U129: 6.499254555
B130: 210 | C130: 10.06461703 | D130: 18.55120486 | E130: 31.9049291 | F130: 49.25022116 | Q130: 206 | R130: 1.400423158 | S130: 2.531903836 | T130: 4.23793477 | U130: 6.370560693
B131: 212 | C131: 10.08790023 | D131: 18.58697574 | E131: 31.94714483 | F131: 49.27962041 | Q131: 208 | R131: 1.372692921 | S131: 2.481768781 | T131: 4.154018039 | U131: 6.244415139
B132: 214 | C132: 10.1106654 | D132: 18.62186343 | E132: 31.98811289 | F132: 49.3078669 | Q132: 210 | R132: 1.34551178 | S132: 2.432626467 | T132: 4.07176297 | U132: 6.120767435
B133: 216 | C133: 10.13292408 | D133: 18.65588975 | E133: 32.02787016 | F133: 49.33500582 | Q133: 212 | R133: 1.318868862 | S133: 2.384457235 | T133: 3.991136662 | U133: 5.999568119
B134: 218 | C134: 10.15468753 | D134: 18.68907595 | E134: 32.06645243 | F134: 49.36108062 | Q134: 214 | R134: 1.292753509 | S134: 2.337241819 | T134: 3.912106861 | U134: 5.880768711
B135: 220 | C135: 10.17596677 | D135: 18.72144278 | E135: 32.10389442 | F135: 49.386133 | Q135: 216 | R135: 1.267155274 | S135: 2.29096133 | T135: 3.834641955 | U135: 5.764321688
B136: 222 | C136: 10.19677258 | D136: 18.75301047 | E136: 32.14022983 | F136: 49.41020307 | Q136: 218 | R136: 1.242063919 | S136: 2.245597256 | T136: 3.758710957 | U136: 5.650180472
B137: 224 | C137: 10.21711548 | D137: 18.78379875 | E137: 32.17549137 | F137: 49.43332934 | Q137: 220 | R137: 1.217469405 | S137: 2.201131451 | T137: 3.684283493 | U137: 5.538299402
B138: 226 | C138: 10.23700578 | D138: 18.81382686 | E138: 32.20971077 | F138: 49.45554882 | Q138: 222 | R138: 1.193361896 | S138: 2.157546128 | T138: 3.611329792 | U138: 5.428633726
B139: 228 | C139: 10.25645354 | D139: 18.84311358 | E139: 32.24291884 | F139: 49.47689705 | Q139: 224 | R139: 1.169731747 | S139: 2.114823852 | T139: 3.539820671 | U139: 5.321139576
B140: 230 | C140: 10.27546861 | D140: 18.87167721 | E140: 32.27514545 | F140: 49.49740821 | Q140: 226 | R140: 1.146569506 | S140: 2.072947534 | T140: 3.469727525 | U140: 5.215773953
B141: 232 | C141: 10.29406062 | D141: 18.8995356 | E141: 32.30641963 | F141: 49.51711512 | Q141: 228 | R141: 1.123865909 | S141: 2.031900423 | T141: 3.401022317 | U141: 5.112494709
B142: 234 | C142: 10.31223899 | D142: 18.92670616 | E142: 32.33676952 | F142: 49.53604931 | Q142: 230 | R142: 1.101611873 | S142: 1.991666099 | T142: 3.333677563 | U142: 5.011260531
B143: 236 | C143: 10.3300129 | D143: 18.95320588 | E143: 32.36622243 | F143: 49.55424107 | Q143: 232 | R143: 1.079798496 | S143: 1.952228468 | T143: 3.267666325 | U143: 4.912030924
B144: 238 | C144: 10.34739137 | D144: 18.97905132 | E144: 32.39480488 | F144: 49.57171953 | Q144: 234 | R144: 1.058417054 | S144: 1.913571754 | T144: 3.202962196 | U144: 4.814766195
B145: 240 | C145: 10.36438319 | D145: =D$11*(1-(EXP(-((D$12*$B145))))) -> 19.00425863 | E145: 32.42254259 | F145: 49.58851265 | Q145: 236 | R145: 1.037458992 | S145: 1.875680495 | T145: 3.139539295 | U145: 4.719427437
B146: 242 | C146: 10.38099696 | D146: 19.02884357 | E146: 32.44946052 | F146: 49.6046473 | Q146: 238 | R146: 1.016915927 | S146: 1.838539532 | T146: 3.077372252 | U146: 4.625976513
B147: 244 | C147: 10.3972411 | D147: 19.05282151 | E147: 32.47558291 | F147: 49.6201493 | Q147: 240 | R147: 0.9967796429 | S147: 1.802134011 | T147: 3.016436199 | U147: 4.53437604
B148: 246 | C148: 10.41312383 | D148: 19.07620743 | E148: 32.50093327 | F148: 49.63504346 | Q148: 242 | R148: 0.9770420835 | S148: 1.766449366 | T148: 2.95670676 | U148: 4.444589379
B149: 248 | C149: 10.42865318 | D149: 19.09901595 | E149: 32.52553441 | F149: 49.64935361 | Q149: 244 | R149: 0.9576953541 | S149: 1.731471325 | T149: 2.898160044 | U149: 4.356580613
B150: 250 | C150: 10.44383702 | D150: 19.12126133 | E150: 32.54940847 | F150: 49.66310265 | Q150: 246 | R150: 0.9387317155 | S150: 1.697185896 | T150: 2.84077263 | U150: 4.270314537
B151: 252 | C151: 10.45868305 | D151: 19.14295746 | E151: 32.57257695 | F151: 49.67631258 | Q151: 248 | R151: 0.9201435821 | S151: 1.663579364 | T151: 2.784521563 | U151: 4.185756643
B152: 254 | C152: 10.47319876 | D152: 19.16411792 | E152: 32.5950607 | F152: 49.68900455 | Q152: 250 | R152: 0.9019235184 | S152: 1.630638285 | T152: 2.729384342 | U152: 4.102873109
B153: 256 | C153: =C$11*(1-(EXP(-((C$12*B153))))) -> 10.48739152 | D153: 19.18475592 | E153: 32.61687996 | F153: 49.70119886 | Q153: 252 | R153: 0.8840642362 | S153: 1.598349484 | T153: 2.675338911 | U153: 4.021630778
B154: =B153+B$22 -> 258 | C154: 10.50126851 | D154: 19.20488437 | E154: 32.63805435 | F154: 49.71291502 | Q154: 254 | R154: 0.8665585914 | S154: 1.566700043 | T154: 2.622363651 | U154: 3.941997153
B155: 260 | C155: 10.51483676 | D155: 19.22451584 | E155: 32.65860295 | F155: 49.72417178 | Q155: =B153 -> 256 | R155: =C$225*EXP(-C$10*Q155) -> 0.8493995817 | S155: =D$225*EXP(-D$10*Q155) -> 1.535677304 | T155: =E$225*EXP(-E$10*Q155) -> 2.570437372 | U155: =F$225*EXP(-F$10*Q155) -> 3.86394038
B156: 262 | C156: 10.52810312 | D156: 19.24366262 | E156: 32.67854425 | F156: 49.73498716 | Q156: 258 | R156: 0.832580343 | S156: 1.505268856 | T156: 2.519539302 | U156: 3.787429234
B157: 264 | C157: 10.54107433 | D157: 19.26233665 | E157: 32.69789619 | F157: 49.74537846 | Q157: 260 | R157: 0.8160941477 | S157: 1.475462536 | T157: 2.469649081 | U157: 3.71243311
B158: 266 | C158: 10.55375694 | D158: 19.28054962 | E158: 32.7166762 | F158: 49.75536231 | Q158: 262 | R158: 0.7999344008 | S158: 1.44624642 | T158: 2.420746752 | U158: 3.638922009
B159: 268 | C159: 10.56615738 | D159: 19.29831292 | E159: 32.73490117 | F159: 49.76495469 | Q159: 264 | R159: 0.7840946384 | S159: 1.417608822 | T159: 2.372812755 | U159: 3.566866526
B160: 270 | C160: 10.57828193 | D160: 19.31563763 | E160: 32.75258751 | F160: 49.77417095 | Q160: 266 | R160: 0.7685685243 | S160: 1.389538287 | T160: 2.325827915 | U160: 3.496237837
B161: 272 | C161: 10.59013672 | D161: 19.3325346 | E161: 32.76975114 | F161: 49.78302584 | Q161: 268 | R161: 0.7533498479 | S161: 1.362023585 | T161: 2.279773436 | U161: 3.427007689
B162: 274 | C162: 10.60172776 | D162: 19.34901438 | E162: 32.78640752 | F162: 49.79153352 | Q162: 270 | R162: 0.7384325215 | S162: 1.335053711 | T162: 2.234630898 | U162: 3.35914839
B163: 276 | C163: 10.6130609 | D163: 19.36508727 | E163: 32.80257162 | F163: 49.7997076 | Q163: 272 | R163: 0.7238105779 | S163: 1.308617876 | T163: 2.190382241 | U163: 3.292632795
B164: 278 | C164: 10.62414191 | D164: 19.38076332 | E164: 32.818258 | F164: 49.80756118 | Q164: 274 | R164: 0.7094781681 | S164: 1.282705506 | T164: 2.147009767 | U164: 3.227434298
B165: 280 | C165: 10.63497637 | D165: =D$11*(1-(EXP(-((D$12*$B165))))) -> 19.39605233 | E165: 32.83348077 | F165: 49.81510681 | Q165: 276 | R165: 0.6954295592 | S165: 1.257306236 | T165: 2.104496125 | U165: 3.163526817
B166: 282 | C166: 10.64556978 | D166: 19.41096385 | E166: 32.84825365 | F166: 49.82235658 | Q166: 278 | R166: 0.6816591313 | S166: 1.232409904 | T166: 2.06282431 | U166: 3.100884789
B167: 284 | C167: 10.6559275 | D167: 19.42550721 | E167: 32.86258992 | F167: 49.82932208 | Q167: 280 | R167: 0.6681613761 | S167: 1.208006553 | T167: 2.021977652 | U167: 3.039483156
B168: 286 | C168: 10.66605477 | D168: 19.43969148 | E168: 32.87650249 | F168: 49.83601445 | Q168: 282 | R168: 0.6549308944 | S168: 1.184086421 | T168: 1.981939812 | U168: 2.979297357
B169: 288 | C169: 10.67595672 | D169: 19.45352555 | E169: 32.89000388 | F169: 49.84244442 | Q169: 284 | R169: 0.6419623938 | S169: 1.160639938 | T169: 1.942694774 | U169: 2.920303317
B170: 290 | C170: 10.68563837 | D170: 19.46701805 | E170: 32.90310625 | F170: 49.84862226 | Q170: 286 | R170: 0.6292506867 | S170: 1.137657728 | T170: 1.90422684 | U170: 2.862477437
B171: 292 | C171: 10.69510461 | D171: 19.48017742 | E171: 32.91582138 | F171: 49.85455787 | Q171: 288 | R171: 0.6167906883 | S171: 1.115130596 | T171: 1.866520622 | U171: 2.805796586
B172: 294 | C172: 10.70436024 | D172: 19.49301189 | E172: 32.92816072 | F172: 49.86026074 | Q172: 290 | R172: 0.6045774144 | S172: 1.09304953 | T172: 1.829561038 | U172: 2.750238091
B173: 296 | C173: 10.71340994 | D173: 19.50552947 | E173: 32.94013538 | F173: 49.86573999 | Q173: 292 | R173: 0.5926059795 | S173: 1.071405699 | T173: 1.793333302 | U173: 2.695779728
B174: 298 | C174: 10.7222583 | D174: 19.51773799 | E174: 32.95175614 | F174: 49.8710044 | Q174: 294 | R174: 0.5808715949 | S174: 1.050190445 | T174: 1.757822923 | U174: 2.642399713
B175: 300 | C175: 10.7309098 | D175: 19.52964508 | E175: 32.96303345 | F175: 49.87606239 | Q175: 296 | R175: 0.5693695667 | S175: 1.029395281 | T175: 1.723015697 | U175: 2.590076693
B176: 302 | C176: 10.73936881 | D176: 19.54125819 | E176: 32.97397746 | F176: 49.88092205 | Q176: 298 | R176: 0.5580952939 | S176: 1.009011889 | T176: 1.688897701 | U176: 2.538789738
B177: 304 | C177: 10.74763961 | D177: 19.55258456 | E177: 32.98459804 | F177: 49.88559117 | Q177: 300 | R177: 0.5470442666 | S177: 0.9890321148 | T177: 1.655455285 | U177: 2.488518333
B178: 306 | C178: 10.7557264 | D178: 19.56363129 | E178: 32.99490472 | F178: 49.8900772 | Q178: 302 | R178: 0.5362120644 | S178: 0.9694479668 | T178: 1.622675075 | U178: 2.439242369
B179: 308 | C179: 10.76363327 | D179: 19.57440527 | E179: 33.0049068 | F179: 49.89438734 | Q179: 304 | R179: 0.5255943541 | S179: 0.9502516109 | T179: 1.590543955 | U179: 2.390942134
B180: 310 | C180: 10.77136423 | D180: 19.58491324 | E180: 33.01461327 | F180: 49.89852847 | Q180: 306 | R180: 0.5151868886 | S180: 0.9314353683 | T180: 1.559049075 | U180: 2.343598308
B181: 312 | C181: 10.77892317 | D181: 19.59516177 | E181: 33.02403287 | F181: 49.90250722 | Q181: 308 | R181: 0.5049855047 | S181: 0.9129917123 | T181: 1.528177835 | U181: 2.297191952
B182: 314 | C182: 10.78631394 | D182: 19.60515726 | E182: 33.03317408 | F182: 49.90632997 | Q182: 310 | R182: 0.4949861218 | S182: 0.8949132651 | T182: 1.497917886 | U182: 2.251704503
B183: 316 | C183: 10.79354028 | D183: 19.61490596 | E183: 33.04204513 | F183: 49.91000282 | Q183: 312 | R183: 0.4851847399 | S183: 0.8771927952 | T183: 1.468257125 | U183: 2.207117767
B184: 318 | C184: 10.80060584 | D184: 19.62441397 | E184: 33.05065399 | F184: 49.91353166 | Q184: 314 | R184: 0.4755774383 | S184: 0.8598232141 | T184: 1.439183686 | U184: 2.163413907
B185: 320 | C185: 10.8075142 | D185: =D$11*(1-(EXP(-((D$12*$B185))))) -> 19.63368722 | E185: 33.05900843 | F185: 49.91692214 | Q185: 316 | R185: 0.4661603741 | S185: 0.8427975737 | T185: 1.410685939 | U185: 2.120575441
B186: =B185+B$22 -> 322 | C186: 10.81426885 | D186: 19.64273152 | E186: 33.06711596 | F186: 49.92017967 | Q186: 318 | R186: 0.4569297802 | S186: 0.8261090636 | T186: 1.382752486 | U186: 2.078585234
B187: 324 | C187: 10.82087322 | D187: 19.65155251 | E187: 33.07498387 | F187: 49.92330947 | Q187: =B185 -> 320 | R187: 0.4478819644 | S187: 0.8097510082 | T187: 1.355372153 | U187: 2.037426489
B188: 326 | C188: 10.82733066 | D188: 19.66015571 | E188: 33.08261925 | F188: 49.92631654 | Q188: 322 | R188: 0.4390133073 | S188: 0.7937168639 | T188: 1.328533986 | U188: 1.997082742
B189: 328 | C189: 10.83364442 | D189: 19.66854649 | E189: 33.09002897 | F189: 49.92920571 | Q189: 324 | R189: 0.4303202614 | S189: 0.778000217 | T189: 1.30222725 | U189: 1.957537854
B190: 330 | C190: 10.83981771 | D190: 19.67673011 | E190: 33.0972197 | F190: 49.9319816 | Q190: 326 | R190: 0.4217993493 | S190: 0.7625947805 | T190: 1.276441423 | U190: 1.918776007
B191: 332 | C191: 10.84585365 | D191: 19.68471167 | E191: 33.10419791 | F191: 49.93464864 | Q191: 328 | R191: 0.4134471626 | S191: 0.7474943921 | T191: 1.251166189 | U191: 1.880781697
B192: 334 | C192: 10.85175531 | D192: 19.69249617 | E192: 33.11096989 | F192: 49.9372111 | Q192: 330 | R192: 0.4052603602 | S192: 0.7326930115 | T192: 1.226391439 | U192: 1.843539724
B193: 336 | C193: 10.85752565 | D193: 19.70008846 | E193: 33.11754172 | F193: 49.93967309 | Q193: 332 | R193: 0.3972356675 | S193: 0.7181847178 | T193: 1.202107261 | U193: 1.807035192
B194: 338 | C194: 10.86316761 | D194: 19.70749331 | E194: 33.12391933 | F194: 49.94203854 | Q194: 334 | R194: 0.3893698742 | S194: 0.7039637076 | T194: 1.178303943 | U194: 1.771253497
B195: 340 | C195: 10.86868405 | D195: 19.71471532 | E195: 33.13010845 | F195: 49.94431124 | Q195: 336 | R195: 0.3816598341 | S195: 0.6900242922 | T195: 1.154971962 | U195: 1.736180328
B196: 342 | C196: 10.87407775 | D196: 19.72175903 | E196: 33.13611465 | F196: 49.94649483 | Q196: 338 | R196: 0.3741024631 | S196: 0.6763608958 | T196: 1.132101984 | U196: 1.701801654
B197: 344 | C197: 10.87935145 | D197: 19.72862882 | E197: 33.14194334 | F197: 49.9485928 | Q197: 340 | R197: 0.366694738 | S197: 0.6629680527 | T197: 1.109684863 | U197: 1.668103724
B198: 346 | C198: 10.88450782 | D198: 19.735329 | E198: 33.14759977 | F198: 49.9506085 | Q198: 342 | R198: 0.3594336957 | S198: 0.6498404057 | T198: 1.087711631 | U198: 1.635073057
B199: 348 | C199: 10.88954946 | D199: 19.74186375 | E199: 33.15308903 | F199: 49.95254517 | Q199: 344 | R199: 0.3523164317 | S199: 0.6369727036 | T199: 1.066173497 | U199: 1.602696441
B200: 350 | C200: 10.89447893 | D200: 19.74823716 | E200: 33.15841605 | F200: 49.9544059 | Q200: 346 | R200: 0.3453400989 | S200: 0.624359799 | T200: 1.045061848 | U200: 1.570960925
B201: 352 | C201: 10.89929873 | D201: 19.7544532 | E201: 33.16358564 | F201: 49.95619367 | Q201: 348 | R201: 0.3385019068 | S201: 0.6119966466 | T201: 1.024368237 | U201: 1.539853815
B202: 354 | C202: 10.90401129 | D202: 19.76051577 | E202: 33.16860244 | F202: 49.95791134 | Q202: 350 | R202: 0.3317991199 | S202: 0.5998783011 | T202: 1.004084386 | U202: 1.509362666
B203: 356 | C203: 10.90861901 | D203: 19.76642866 | E203: 33.17347098 | F203: 49.95956166 | Q203: 352 | R203: 0.3252290572 | S203: 0.5879999149 | T203: 0.9842021835 | U203: 1.479475283
B204: 358 | C204: 10.91312421 | D204: 19.77219556 | E204: 33.17819562 | F204: 49.96114727 | Q204: 354 | R204: 0.3187890904 | S204: 0.5763567364 | T204: 0.9647136745 | U204: 1.45017971
... 23 more rows

Sheet Kineticplot
A1: BiaCalculations | T1: BiaCalculations
A2: Kinetic plot | T2: Kinetic plot
C4: Nanobodies over FXI | K4: FXIIa over FXIwt
C7: 1A5 | E7: 1B3 | G7: 2E3 | I7: 2H5 | K7: 1H9 | M7: 2G3
C8: ka | D8: kd | E8: ka | F8: kd | G8: ka | H8: kd | I8: ka | J8: kd | K8: ka | L8: kd | M8: ka | N8: kd | O8: ka | P8: kd | Q8: ka | R8: kd
A9: Experiment | B9: fit-model | C9: (M-1s-1) | D9: (s-1) | E9: (M-1s-1) | F9: (s-1) | G9: (M-1s-1) | H9: (s-1) | I9: (M-1s-1) | J9: (s-1) | K9: (M-1s-1) | L9: (s-1) | M9: (M-1s-1) | N9: (s-1) | O9: (M-1s-1) | P9: (s-1) | Q9: (M-1s-1) | R9: (s-1)
A10: 1A5 | B10: Apple 3 | C10: 34300 | D10: 0.000978 | E10: 42700 | F10: 0.000504 | G10: 35400 | H10: 0.000799 | I10: 73300 | J10: 0.000114 | K10: 109000 | L10: 0.000108 | M10: 124000 | N10: 0.00099
A11: 1B3 | B11: FXI | C11: 87300 | D11: 0.000518 | E11: 59400 | F11: 8.35e-05 | G11: 87000 | H11: 0.000736 | I11: 262000 | J11: 7.7e-05 | K11: 309000 | L11: 7.9e-05 | M11: 425000 | N11: 0.001107
A12: 2E3 | B12: FXIa | C12: 86500 | D12: 0.000517 | E12: 64100 | F12: 7.79e-05 | G12: 88100 | H12: 0.00078 | I12: 291000 | J12: 7.23e-05 | K12: 335000 | L12: 8.33e-05 | M12: 435000 | N12: 0.00109
A13: 2H5
A14: 1H9
A15: 2G3
A17: 8
A18: 9
A19: 10
A20: 11
A21: 12
A22: 13
A23: 14
A24: 15
A25: 16
A26: 17
A27: 18
A28: 19
A29: 20
B32: Each kinetic pair will give a point.
B33: In this plot eight different groups are defined.
B34: Change values as you need.
